Cogmind - Beta 16 @@@ ROGUE MODE // 2025.11.23 @ 20:06:41 Player: Dwarfinator Result: Defending 0bPrime! Performance ------------- Evolutions (8) 4000 Regions Visited (25) 5000 Robots Destroyed (444) 2220 Value Destroyed (25733) 25733 Prototype IDs (182) 3640 Alien Tech Used (5) 1000 Bonus (41312) 41312 TOTAL SCORE: 82905 Bonus ------- Triggered High Security 500 High Alert Combat Kills 16241 Follower Combat Kills 1953 Network Hubs Disabled 200 Registered with UFD 300 Met Optimus in HQ 500 Met Zhirov 300 Built Enhanced Grunts 300 A7 Reached Mainframe 300 Met R17 at Cetus 500 Found Hidden Lab 3000 Met R17 at Research 2000 Scanned by Researcher 500 Met Optimus at Protoforge 1000 Executed Drillbomb Mission 10000 Optimus Survived to 0b1 3000 Win 3000 Friendly Fire -2282 Cogmind --------- Core Integrity 1166/1450 Matter 199/300 Energy 321/1070 System Corruption 5% Temperature Warm (156) Movement Flying (6) Location 0bPrime Parts ------- > --- POWER (2) -------- Micro Antimatter Reactor Concept Zero-point Core > --- PROPULSION (7) --- Diametric Drive Electron Diverter Electron Diverter Cooled Q-thruster Cooled Q-thruster Cooled Q-thruster Cooled Q-thruster > --- UTILITY (12) ----- 0bPrime Scrap Suit Medium Storage Unit Concept Chromion Battery Advanced Gravity Neutralizer Spectral Analyzer Experimental Targeting Computer Concept Weapon Articulator Experimental Core Analyzer Concept Core Analysis Suite Medium Regenerative Plating Graphene Brace > --- WEAPON (3) ------- Warp Cannon Faulty Concept Blasthammer > --- INVENTORY (10) --- Hybrid Graviton Reactor Zero-point Reactor Experimental Kinecellerator Experimental Weapon Cycler Potential Cannon Overtuned Bore Cannon Enhanced Gamma Bomb Array Peak State ------------ > --- POWER ------------ Micro Antimatter Reactor Zero-point Reactor > --- PROPULSION ------- Diametric Drive Electron Diverter Cooled Q-thruster Cooled Q-thruster Cooled Q-thruster Cooled Q-thruster Experimental Surge Thruster > --- UTILITY ---------- Medium Storage Unit Experimental Energy Well Advanced Gravity Neutralizer Plexus Tether Spectral Analyzer Concept Weapon Articulator Experimental Core Analyzer Experimental Core Analyzer Experimental Kinecellerator Experimental Weapon Cycler Medium Regenerative Plating Graphene Brace > --- WEAPON ----------- Potential Cannon Concept XC Strikerail > --- INVENTORY -------- Micro Antimatter Reactor Electron Diverter Experimental Reaction Control System Experimental Propulsion Shielding Warp Cannon Helical Railgun Tri-rail Accelerator Enhanced Gamma Bomb Array [Rating: 225] Favorites ----------- Power Micro Antimatter Reactor Engine Subdweller Power Source Power Core Micro Fission Core Reactor Micro Antimatter Reactor Propulsion Flightbrick Treads Spiked Treads Leg Aluminum Leg Wheel Armored Huge Wheel Flight Unit Flightbrick Utility Medium Storage Unit Device Active Sensor Suite Storage Medium Storage Unit Processor Machine Analyzer Hackware Advanced Hacking Suite Protection Medium Regenerative Plating Artifact Phase Redirector Weapon Tri-rail Accelerator Energy Gun Subdweller Laser Energy Cannon Subdweller Beam Cannon Ballistic Gun Subdweller Machine Gun Ballistic Cannon Tri-rail Accelerator Launcher Heavy Missile Launcher Special Weapon Multitool Impact Weapon Concept Blasthammer Slashing Weapon Phasing Sabre Special Melee Weapon Datajack Build | -11 -10 -10 -10 -7 -7 -5 -5 -5 -5 -5 -5 -5 -4 -4 -4 -4 -4 -4 -3 -3 -3 -3 -2 -2 -2 ------- Run | Yrd Mat Min Sub Rec Scr Fac Was Fac Ext Cet Arc Hub Fac Was Fac Upp Upp Zhi Pro Res Arm Lab Res Qua Frg Slots Evolved 15 | . . . . . . 10 . . . . . . 2 . . . . . . 2 . . 1 . . Power 1 | . . . . . . 1 . . . . . . . . . . . . . . . . . . . Propulsion 5 | . . . . . . 4 . . . . . . . . . . . . . 1 . . . . . Utility 8 | . . . . . . 5 . . . . . . 2 . . . . . . . . . 1 . . Weapon 1 | . . . . . . . . . . . . . . . . . . . . 1 . . . . . Parts Attached 173 | 2 4 3 27 7 8 14 . 11 12 5 1 2 1 2 9 1 . 2 2 7 10 . 3 3 37 Power 20 | . . 1 3 1 . 2 . . 3 2 . 1 . 1 1 . . . . 3 . . . . 2 Engine 11 | . . 1 3 1 . 2 . . 3 1 . . . . . . . . . . . . . . . Core 5 | . . . . . . . . . . . . 1 . 1 1 . . . . 1 . . . . 1 Reactor 4 | . . . . . . . . . . 1 . . . . . . . . . 2 . . . . 1 Propulsion 29 | . 2 . 6 . 3 3 . . . . . . . . 4 . . . . . 5 . 2 . 4 Treads 5 | . 2 . 1 . . . . . . . . . . . . . . . . . 2 . . . . Leg 4 | . . . 3 . . . . . . . . . . . . . . . . . . . . . 1 Wheel 5 | . . . 2 . 3 . . . . . . . . . . . . . . . . . . . . Hover . | . . . . . . . . . . . . . . . . . . . . . . . . . . Flight 15 | . . . . . . 3 . . . . . . . . 4 . . . . . 3 . 2 . 3 Utility 78 | . 1 . 8 2 3 9 . 9 6 3 1 1 1 1 3 1 . 1 2 3 3 . . 2 18 Device 32 | . 1 . 5 . 1 5 . 2 3 2 1 1 . 1 1 . . . 1 . 1 . . . 7 Storage 8 | . . . . 1 2 . . 2 . . . . . . . . . . . 1 . . . . 2 Processor 17 | . . . . 1 . 2 . 2 2 . . . . . . 1 . 1 1 1 . . . . 6 Hackware 11 | . . . . . . . . 2 . . . . 1 . 2 . . . . 1 2 . . 1 2 Protection 9 | . . . 3 . . 2 . 1 1 1 . . . . . . . . . . . . . . 1 Artifact 1 | . . . . . . . . . . . . . . . . . . . . . . . . 1 . Weapon 46 | 2 1 2 10 4 2 . . 2 3 . . . . . 1 . . 1 . 1 2 . 1 1 13 Energy Gun 7 | 2 1 1 2 . . . . . . . . . . . . . . . . . . . . . 1 Energy Cannon 7 | . . . 3 1 . . . . . . . . . . . . . . . . . . . 1 2 Ballistic Gun 7 | . . 1 2 . . . . . . . . . . . . . . . . . 1 . . . 3 Ballistic Cannon 8 | . . . 1 2 . . . 2 . . . . . . . . . . . . . . . . 3 Launcher 3 | . . . 1 . . . . . 1 . . . . . . . . . . . 1 . . . . Special Weapon 7 | . . . 1 1 . . . . 1 . . . . . . . . . . 1 . . 1 . 2 Impact Weapon 1 | . . . . . . . . . . . . . . . . . . . . . . . . . 1 Slashing Weapon 4 | . . . . . 1 . . . 1 . . . . . . . . 1 . . . . . . 1 Piercing Weapon . | . . . . . . . . . . . . . . . . . . . . . . . . . . Special Melee Weapon 2 | . . . . . 1 . . . . . . . . . 1 . . . . . . . . . . Unidentified Prototypes 5 | . . . . . . . . . . . . . . . . . . 1 . . 1 1 . 1 1 Parts Lost 19 | . . 1 4 . . . . . 4 . . . . 1 3 . . . . . . . . . 6 Power 3 | . . . . . . . . . 2 . . . . . 1 . . . . . . . . . . Propulsion 6 | . . . 1 . . . . . . . . . . 1 2 . . . . . . . . . 2 Utility 6 | . . . 2 . . . . . 2 . . . . . . . . . . . . . . . 2 Weapon 4 | . . 1 1 . . . . . . . . . . . . . . . . . . . . . 2 Highest Loss Streak 3 | . . 1 3 . . . . . 3 . . . . 1 1 . . . . . . . . . 2 To Critical Strikes . | . . . . . . . . . . . . . . . . . . . . . . . . . . Average Backups 8 | 3 1 4 4 1 14 11 4 4 8 8 9 8 8 8 7 7 7 7 8 8 8 7 8 8 8 Power . | . . . . . . . . . . . . . . . . . . 1 . 1 1 1 1 1 1 Propulsion . | 2 . 1 . 1 1 . . . . . . . . . . . . . . . . 1 1 2 1 Utility 3 | . . . 1 . 6 5 . . 2 3 4 4 3 3 3 4 4 4 3 4 3 2 1 2 1 Weapon 2 | . . 2 2 . 2 2 2 2 3 3 3 3 3 2 2 2 2 1 2 1 2 2 3 2 3 Tool/Special . | . . . . . . . . . . . . . . . . . . . . . . . . . . Unused Backups 45 | 2 . . 9 . 5 8 1 1 . 1 . . 3 2 . . 1 1 . 2 1 3 . . 5 Power 5 | . . . . . 1 1 . . . . . . . . . . . 1 . . . 1 . . 1 Propulsion 3 | 2 . . . . . . . . . . . . . . . . 1 . . . . . . . . Utility 18 | . . . 1 . 2 3 1 1 . 1 . . 3 2 . . . . . 1 1 . . . 2 Weapon 15 | . . . 7 . 1 2 . . . . . . . . . . . . . 1 . 2 . . 2 Tool/Special 4 | . . . 1 . 1 2 . . . . . . . . . . . . . . . . . . . Average Slot Usage (%) 73 | . 56 81 86 79 62 59 70 70 59 70 70 71 71 67 70 68 68 67 67 64 70 70 75 75 90 Engine 7 | . . 10 14 14 14 9 10 10 9 6 5 4 4 . . . . . . . . . . . . Reactor 2 | . . . . . . . . . . 3 5 5 4 4 4 4 4 4 4 4 8 8 7 7 7 Treads 3 | . 22 28 12 14 . . . . . . . . . . . . . . . . . . . . . Leg 1 | . . . 6 . . . . . . . . . . . . . . . . . . . . . . Wheel 4 | . . . 8 14 14 . . . . . . . . . . . . . . . . . . . . Flight 8 | . . . . . . 13 15 15 15 15 15 15 13 9 10 9 9 9 9 8 11 16 15 15 26 Device 8 | . 11 14 3 . . 15 20 13 8 15 10 13 15 17 12 12 13 11 13 10 9 13 18 19 20 Storage 4 | . . . . 1 12 1 . 1 5 5 5 5 4 4 4 4 4 4 4 4 4 4 3 3 6 Processor 10 | . . . . 1 4 5 10 14 13 20 20 20 18 18 18 18 18 19 17 16 16 16 15 11 13 Hackware 1 | . . . . . . . . 4 2 . . . 3 4 8 5 4 4 4 5 7 4 3 6 1 Protection 4 | . . . 11 12 . 6 10 6 . . 4 1 1 . . 3 4 4 4 4 2 1 3 3 3 Energy Gun 1 | . 22 17 3 . . . . . . . . . . . . . . . . . . . . . . Energy Cannon 2 | . . . 10 5 . . . . . . . . . . . . . . . . . . . . . Ballistic Gun 3 | . . 10 11 4 . . . . . . . . . . . . . . . . . . . . 1 Ballistic Cannon 5 | . . . 2 6 13 3 5 2 4 5 5 3 2 3 2 4 4 . 4 4 3 1 3 2 3 Peak Build Rating 225 | 2 5 6 17 21 35 113 114 122 126 136 137 136 147 147 153 156 156 159 159 170 187 193 205 210 225 Average Rating 94 | 1 4 5 13 17 29 105 113 113 114 130 136 133 143 142 142 154 155 145 157 164 173 173 201 204 206 On Entrance 114 | . . 5 6 16 21 34 113 114 112 122 136 134 135 147 147 153 155 156 159 157 169 187 192 204 207 Avg Prop Armor Cover (%) 10 | . 28 28 5 5 13 . . . . . 24 . . 29 . . . . . . 25 . . . . Naked Turns 2 | . 2 . . . . . . . . . . . . . . . . . . . . . . . . Heaviest Build 219 | 2 3 7 38 37 219 35 35 36 46 48 54 50 53 53 50 54 54 54 54 57 57 62 63 63 74 Greatest Support 79 | 3 3 40 40 16 28 35 35 37 37 53 53 53 53 53 55 55 55 55 55 57 63 63 68 66 79 Greatest Overweight (x) 12 | . . . 11 2 12 . . . 1 . 8 . . 2 . . . . . . 2 . 2 3 1 Average Overweight (x) . | . . . 1 1 3 . . . . . 5 . . . . . . . . . . . . . . Largest Inventory Capacity 35 | 5 5 5 5 8 35 35 5 10 10 10 10 10 10 10 10 10 10 10 10 10 10 10 10 10 10 Average Capacity 11 | 5 5 5 5 5 24 11 5 6 10 10 10 10 10 10 10 10 10 10 10 10 10 10 10 10 10 Most Carried 35 | 5 5 5 5 8 35 31 5 10 10 10 10 10 10 10 10 10 10 10 10 10 10 10 10 10 10 Average Carried 10 | 3 . 4 4 5 20 9 4 5 9 9 10 9 9 9 9 9 9 9 9 9 9 8 9 9 9 Final Capacity 35 | 5 5 5 5 8 35 5 5 10 10 10 10 10 10 10 10 10 10 10 10 10 10 10 10 10 10 Final Carried 35 | 5 . 5 5 8 35 5 5 9 10 10 10 10 10 10 10 9 10 10 10 10 10 10 10 10 8 Scrap Suit Usage (%) 1 | . . . . . . . . . . . . . . . . . . . . . . . . . 17 Parts Cannibalized 8 | . . . . . . . . . . . . . . . . . . . . . . . . . 8 Class Distribution -------------------- 21% | Scavenger-Scout 18% | Subdweller-Mutant 13% | Mutant 11% | Scavenger-Skirmisher 10% | Hauler-Mutant 6% | Scavenger-Sprinter 5% | Derelict-Scout 4% | Hacker-Scout Dominant Class ---------------- Mutant | -10/Materials Mutant | -10/Mines Subdweller-Mutant | -10/Subcaves Mutant | -7/Recycling Hauler-Mutant | -7/Scraptown Derelict-Scout | -5/Factory Derelict-Scout | -5/Waste Derelict-Scout | -5/Factory Derelict-Scout | -5/Extension Scavenger-Scout | -5/Cetus Scavenger-Skirmisher | -5/Archives Scavenger-Scout | -5/Hub_04(d) Scavenger-Scout | -4/Factory Scavenger-Skirmisher | -4/Waste Scavenger-Scout | -4/Factory Scavenger-Scout | -4/Upper Caves Scavenger-Scout | -4/Upper Caves Scavenger-Scout | -4/Zhirov Scavenger-Scout | -3/Proximity Caves Scavenger-Scout | -3/Research Hacker-Scout | -3/Armory Scout | -3/Lab Scavenger-Scout | -2/Research Hacker-Scout | -2/Quarantine Scavenger-Sprinter | -2/Protoforge Resources | -11 -10 -10 -10 -7 -7 -5 -5 -5 -5 -5 -5 -5 -4 -4 -4 -4 -4 -4 -3 -3 -3 -3 -2 -2 -2 ----------- Run | Yrd Mat Min Sub Rec Scr Fac Was Fac Ext Cet Arc Hub Fac Was Fac Upp Upp Zhi Pro Res Arm Lab Res Qua Frg Matter Collected 17282 | 220 . 82 1049 414 925 170 . 825 1032 300 182 204 88 331 999 651 78 130 684 562 1139 . 482 436 6299 Remotely . | . . . . . . . . . . . . . . . . . . . . . . . . . . Salvage Created 21117 | 234 . 121 670 341 . 114 . 992 942 371 145 271 . 80 1269 355 98 160 511 390 1324 . 654 709 11366 Parts 880 | 17 . 10 48 12 . 4 . 35 38 6 4 14 . 7 73 5 9 7 17 7 44 . 49 19 455 Haulers Intercepted 14 | . . . . . . . . 2 . . . 2 . . . . . . . 5 . . 3 2 . Recyclers Shooed 13 | . . . . 12 . . . 1 . . . . . . . . . . . . . . . . . Parts Field Recycled . | . . . . . . . . . . . . . . . . . . . . . . . . . . Retrieved Matter . | . . . . . . . . . . . . . . . . . . . . . . . . . . Parts Self-Destructed 32 | . . . 3 . . . . . . . . . . . . 2 6 5 16 . . . . . . Prevented . | . . . . . . . . . . . . . . . . . . . . . . . . . . Parts Restored . | . . . . . . . . . . . . . . . . . . . . . . . . . . Kills | -11 -10 -10 -10 -7 -7 -5 -5 -5 -5 -5 -5 -5 -4 -4 -4 -4 -4 -4 -3 -3 -3 -3 -2 -2 -2 ------- Run | Yrd Mat Min Sub Rec Scr Fac Was Fac Ext Cet Arc Hub Fac Was Fac Upp Upp Zhi Pro Res Arm Lab Res Qua Frg Combat Hostiles Destroyed 344 | . . 4 19 . . . . 6 16 5 2 . . . 29 1 4 . 13 . 30 . 3 4 208 Melee 5 | . . . . . . . . . . . . . . . 1 . . . . . 4 . . . . Guns 27 | . . 4 8 . . . . . . . . . . . . . . . . . 2 . . . 13 Cannons 276 | . . . 10 . . . . 6 12 5 2 . . . 3 1 4 . 13 . 21 . 3 3 193 AOE 35 | . . . 1 . . . . . 4 . . . . . 25 . . . . . 3 . . . 2 Classes Destroyed 32 | 2 . 2 1 . . . . 6 4 . . . . 1 . 2 . . 2 . 4 . . 1 7 Worker 18 | . . . . . . . . 1 3 . . 1 . . 10 . . . . . . . 3 . . Builder 11 | . . . . . . . . . 1 . . 1 . . 2 . . . . . . . 4 2 1 Tunneler 11 | 7 . . . . . . . 2 1 . . . . . 1 . . . . . . . . . . Hauler 14 | . . . . . . . . 2 . . . 2 . . . . . . . 5 . . 3 2 . Recycler 19 | 1 . . . 5 . 1 . 4 2 . . 1 . . 4 . . . . . . . 1 . . Minesweeper 1 | . . . . . . . . . . . . . . . . 1 . . . . . . . . . Mechanic 2 | . . . . . . . . . 1 . . . . . 1 . . . . . . . . . . Operator 5 | . . . . . . . . 1 . . 1 . . . 2 . . . . . . . . . 1 Drone 21 | . . . . . . . . . . . . . . . . . . . 2 . . . . . 19 Watcher 11 | . . . . . . . . 1 1 2 . . . . 1 . . . . . 2 . 2 . 2 Swarmer 56 | . . 2 . . . . . 1 4 . . . . . 23 1 4 . . . . . . . 21 Cutter 4 | . . . . . . . . . . . . . . . . . . . . . . . . . 4 Saboteur 5 | . . . . . . . . . . . . . . . . . . . . . 1 . . . 4 Grunt 49 | . . 2 . . . . . 1 5 . . . . . 3 . . . 4 . 6 . 1 . 27 Brawler 11 | . . . . . . . . . . . . . . . . . . . . . . . . . 11 Duelist 14 | . . . . . . . . . . . . . . . . . . . . . 7 . . . 7 Protector 8 | . . . . . . . . . . . . . . . . . . . 2 . . . . . 6 Researcher 1 | . . . . . . . . . . . . . . . . . . . . . . . . . 1 Sentry 15 | . . . . . . . . 3 5 . 2 . . . . . . . 1 . 1 . . . 3 Demolisher 4 | . . . . . . . . . . . . . . . . . . . 2 . 2 . . . . Specialist 9 | . . . . . . . . . . . . . . . . . . . . . 5 . . . 4 Hunter 21 | . . . . . . . . . 1 . . . . . . . . . . . 1 . . 1 18 Programmer 39 | . . . . . . . . 1 . . . . . . 3 . . . 2 . 4 . 2 2 25 Heavy 1 | . . . . . . . . . . . . . . . . . . . . . 1 . . . . Behemoth 1 | . . . . . . . . . 1 . . . . . . . . . . . . . . . . Armor Guard 2 | . . . . . . . . . . . . . . . . . . . . . 2 . . . . Cetus Guard 5 | . . . . . . . . . . 5 . . . . . . . . . . . . . . . Hotshot 1 | . . . . . . . . . . . . . . . . . . . . . . . . . 1 Decapitator 1 | . . . . . . . . . . . . . . . . . . . . . . . . . 1 Striker 33 | . . . . . . . . . . . . . . . . . . . . . . . . . 33 Executioner 23 | . . . . . . . . . . . . . . . . . . . . . . . . . 23 Fortress 1 | . . . . . . . . . . . . . . . . . . . . . . . . 1 . Subdweller 19 | . . . 19 . . . . . . . . . . . . . . . . . . . . . . Elite 1 | . . . . . . . . . . . . . . . . . . . . . . . . . 1 Scraphulk 2 | . . . . . . . . . . . . . . . . . . . . . . . . . 2 Decomposer 1 | . . . . . . . . . . . . . . . . 1 . . . . . . . . . Packrat 5 | . . . . . . . . . . . . . . . . 4 1 . . . . . . . . Samaritan 5 | . . . . . . . . . . . . . . . . 2 . . 3 . . . . . . Thug 4 | . . . 1 . . . . . 1 2 . . . . . . . . . . . . . . . Martyr 1 | . . . . . . . . . . . . . . 1 . . . . . . . . . . . Best Kill Streak 22 | 6 . 2 3 2 . 1 . 3 5 4 1 3 . . 10 1 4 . 2 2 8 . 5 2 22 Combat Bots Only 22 | . . 2 3 . . . . 1 3 3 1 . . . 5 1 4 . 2 . 8 . 2 2 22 Max Kills in Single Turn 5 | 2 . 1 1 1 . 1 . 1 2 2 1 1 . 1 5 1 2 . 2 1 2 . 1 1 2 Gunslinging . | . . . . . . . . . . . . . . . . . . . . . . . . . . Exploded 4 | . . . 1 . . . . . 2 . . . . . 4 . . . . . 1 . . . 1 Melee 1 | . . . . . . . . . . . . . . . 1 . . . . . 1 . . . . Uniques/NPCs Destroyed . | . . . . . . . . . . . . . . . . . . . . . . . . . . Combat | -11 -10 -10 -10 -7 -7 -5 -5 -5 -5 -5 -5 -5 -4 -4 -4 -4 -4 -4 -3 -3 -3 -3 -2 -2 -2 -------- Run | Yrd Mat Min Sub Rec Scr Fac Was Fac Ext Cet Arc Hub Fac Was Fac Upp Upp Zhi Pro Res Arm Lab Res Qua Frg Hostile Shots Fired 655 | . . 26 77 . . . . 28 31 3 1 6 . . 157 18 7 . 13 3 136 . 13 25 111 Missed 311 | . . 8 19 . . . . 15 15 1 . 3 . . 81 13 4 . 3 1 82 . 6 14 46 Hits 344 | . . 18 58 . . . . 13 16 2 1 3 . . 76 5 3 . 10 2 54 . 7 11 65 Melee 7 | . . . . . . . . . . . . . . . . . . . . . . . . . 7 Projectile 337 | . . 18 58 . . . . 13 16 2 1 3 . . 76 5 3 . 10 2 54 . 7 11 58 AOE 4 | . . . 3 . . . . . . . . . . . . . . . . . . . . . 1 Critical Strikes 23 | . . 1 2 . . . . 1 2 1 . . . . 2 . . . . . 2 . 2 . 10 Actively Blocked 13 | . . . . . . . . 1 . . . . . . . . . . . . . . 2 . 10 Part Disruptions 1 | . . . . . . . . . . . . . . . . . . . . . 1 . . . . Damage Taken 8000 | . 43 201 1511 18 . . . 358 285 28 28 51 . 45 1415 102 51 . 152 . 1023 . 162 255 2272 Core 861 | . . 19 207 . . . . 44 18 . . 14 . . 93 . . . 21 . 161 . . . 284 Absorbed by Shields 310 | . . . . . . . . . 220 27 . . . . . . . . . . . . . . 63 Reduced by Siege Mode 32 | . . . . . . . . . . . . . . . . . . . . . 32 . . . . Redirected to Shielding 60 | . . . . . . . . 60 . . . . . . . . . . . . . . . . . Regen/Repaired (Parts) 1554 | . . . . . . . . 264 . 1 106 . . . 93 60 . . 23 . 57 27 46 298 579 Core Remaining (%) 75 | 100 . . . . 9 . . . . . . 92 . . . . . . 90 . . 82 . . 80 Volleys Fired 1586 | 19 . 17 100 37 . 2 . 50 86 20 14 8 8 22 66 27 5 8 74 46 91 . 38 30 818 Largest 2 | 2 . 2 2 2 . 1 . 1 1 1 1 1 1 1 1 1 1 1 1 1 1 . 1 1 2 Hottest 200 | 80 . 80 120 93 . 50 . 60 60 60 60 60 60 60 60 60 60 30 60 60 60 . 60 100 200 Shots Fired 1685 | 38 . 34 157 38 . 2 . 52 86 20 14 8 8 22 66 29 5 8 73 46 91 . 38 30 820 Gun 242 | 38 . 34 80 . . . . . . . . . . . . . . . . . 9 . . . 81 Cannon 1363 | . . . 72 23 . 2 . 52 76 20 14 8 8 5 55 29 5 . 73 44 76 . 35 30 736 Launcher 24 | . . . 2 . . . . . 7 . . . . . 9 . . . . . 6 . . . . Special 56 | . . . 3 15 . . . . 3 . . . . 17 2 . . 8 . 2 . . 3 . 3 Kinetic 1419 | . . 7 59 15 . 2 . 52 76 20 14 8 8 5 55 29 5 . 73 44 85 . 35 28 799 Thermal 233 | 38 . 27 98 20 . . . . 3 . . . . 17 2 . . 8 . . . . . 2 18 Explosive 22 | . . . . . . . . . 7 . . . . . 9 . . . . . 6 . . . . Electromagnetic 3 | . . . . 3 . . . . . . . . . . . . . . . . . . . . . Robot Hit Streak 38 | 10 . 7 13 7 . 3 . 12 19 5 18 33 . 38 20 14 5 10 25 13 22 . 15 28 35 Robot Miss Streak 6 | 4 . 3 3 2 . . . 1 4 1 2 . . 4 5 2 2 . 5 2 3 . 2 2 6 Penetration Max 2 | . . . . . . . . 1 . . . . . . . . . . . . . . . . 2 Secondary Targets 1 | . . 1 . . . . . . . . . . . . . . . . . . . . . . . Max Gunslinging Chain 1 | . . 1 . . . . . . . . . . . . . . . . . . . . . . . Shots Hit Robots 1126 | 24 . 23 85 20 1 2 . 34 41 8 11 8 . 14 37 14 5 10 35 15 106 . 31 25 577 Core Hits 822 | 9 . 8 30 10 . 1 . 18 60 20 12 5 . 9 61 12 5 3 46 12 74 . 26 14 387 Critical Kills 112 | . . . 4 . . . . . . . . . . . . . . . . . 2 . . 1 105 Critical Parts Destroyed 144 | . . . 1 . . . . . . . . . . . . . . . . . 1 . . . 142 Critical Strikes 318 | . . . 5 . . . . 5 3 2 . . . . 5 1 . . 3 1 10 . 3 2 278 Meltdown 2 | . . . . . . . . . . . . . . . . . . . . . . . . 1 1 Destroy 274 | . . . 5 . . . . . . . . . . . . . . . . . 4 . . . 265 Blast 35 | . . . . . . . . 4 3 2 . . . . 3 1 . . 3 1 2 . 3 1 12 Sever 7 | . . . . . . . . 1 . . . . . . 2 . . . . . 4 . . . . Melee Attacks 263 | . . . . . 1 . . 43 1 . . 11 3 1 53 . . 2 . 8 55 11 35 20 19 Impact . | . . . . . . . . . . . . . . . . . . . . . . . . . . Slashing 260 | . . . . . . . . 43 1 . . 11 3 1 51 . . 2 . 8 55 11 35 20 19 Piercing . | . . . . . . . . . . . . . . . . . . . . . . . . . . Sneak Attacks 55 | . . . . . 1 . . 7 1 . . 3 . 1 12 . . . . . 21 . 6 2 1 Combat Hostiles . | . . . . . . . . . . . . . . . . . . . . . . . . . . Follow-up Attacks . | . . . . . . . . . . . . . . . . . . . . . . . . . . Damage Inflicted 62538 | 274 . 257 2234 377 . 95 . 2799 3921 1137 675 686 . 559 6058 668 243 230 2562 813 6816 . 2029 1423 28682 Guns 2603 | 274 . 257 1077 . . . . . . . . . . . . . . . . . 28 . . . 967 Cannons 48606 | . . . 1028 266 . 95 . 1679 3278 1137 675 410 . 404 1458 668 243 . 2562 813 4141 . 1374 1211 27164 Explosions 5794 | . . . 124 33 . . . . 541 . . . . . 3475 . . . . . 1167 . . . 454 Melee 5294 | . . . . . . . . 1120 84 . . 276 . 66 1117 . . 187 . . 1480 . 655 212 97 Ramming 5 | . . . 5 . . . . . . . . . . . . . . . . . . . . . . Kinetic 49412 | . . 31 1391 240 . 95 . 1679 3278 1137 675 410 . 404 1458 668 243 . 2562 813 4169 . 1374 1167 27618 Thermal 2857 | 274 . 226 838 111 . . . . 18 . . . . 89 547 . . 43 . . . . . 44 667 Explosive 4902 | . . . . . . . . . 541 . . . . . 2894 . . . . . 1167 . . . 300 Electromagnetic 68 | . . . . 26 . . . . . . . . . . 42 . . . . . . . . . . Impact . | . . . . . . . . . . . . . . . . . . . . . . . . . . Slashing 5294 | . . . . . . . . 1120 84 . . 276 . 66 1117 . . 187 . . 1480 . 655 212 97 Piercing . | . . . . . . . . . . . . . . . . . . . . . . . . . . Highest Corruption 6 | . . . . . . . 6 6 1 1 1 2 . . 5 5 5 5 6 . 3 3 2 4 5 Average Corruption 3 | . . . . . . . 6 4 1 1 1 2 . . 5 5 5 5 5 . 2 3 1 2 3 Corruption Purged 10 | . . . . . . . . 5 . . 1 . . . . . . . . . . . . . 4 Corruption Blocked . | . . . . . . . . . . . . . . . . . . . . . . . . . . Effects 119 | . . . . . . . 1 20 9 5 1 2 . . . 22 4 2 24 . 12 2 3 6 6 Message Errors 28 | . . . . . . . . 5 4 1 1 . . . . 3 1 . 6 . 4 1 1 . 1 Matter Fused 31 | . . . . . . . 1 8 1 . . . . . . 8 1 . 6 . 2 . . 2 2 Heat Flow Errors 17 | . . . . . . . . 3 2 . . . . . . 1 1 1 4 . 3 . . . 2 Energy Discharges 11 | . . . . . . . . 1 . 1 . 1 . . . 4 . . 2 . 1 1 . . . Parts Rejected 1 | . . . . . . . . . . . . . . . . . . . . . . . . . 1 Parts Fused 1 | . . . . . . . . . . 1 . . . . . . . . . . . . . . . Data Loss (minor) 15 | . . . . . . . . 1 1 1 . 1 . . . 2 1 1 1 . 2 . 1 3 . Data Loss (major) 7 | . . . . . . . . . 1 . . . . . . 2 . . 2 . . . 1 1 . Misfires 5 | . . . . . . . . 2 . . . . . . . 2 . . 1 . . . . . . Alerts 1 | . . . . . . . . . . 1 . . . . . . . . . . . . . . . Weapon Failures 2 | . . . . . . . . . . . . . . . . . . . 2 . . . . . . Overload Shots . | . . . . . . . . . . . . . . . . . . . . . . . . . . Overflow Damage 1994 | . . . 28 1 . 11 . 232 169 . . 105 . . 695 106 . 67 38 . 207 . 56 81 198 Projectiles 614 | . . . 28 1 . 11 . 46 7 . . . . . 104 106 . . 38 . 61 . 7 35 170 Explosions 514 | . . . . . . . . . 118 . . . . . 353 . . . . . 15 . . . 28 Melee 866 | . . . . . . . . 186 44 . . 105 . . 238 . . 67 . . 131 . 49 46 . Knockbacks 65 | . . . 6 2 . . . 3 8 1 1 . . . 8 3 2 . 3 . 8 . 3 . 17 Impact . | . . . . . . . . . . . . . . . . . . . . . . . . . . Kinetic 65 | . . . 6 2 . . . 3 8 1 1 . . . 8 3 2 . 3 . 8 . 3 . 17 Secondary . | . . . . . . . . . . . . . . . . . . . . . . . . . . Self-Inflicted Damage 115 | . . . 20 18 . . . . 8 . . . . . 69 . . . . . . . . . . Shots 4 | . . . 1 1 . . . . 1 . . . . . 1 . . . . . . . . . . Rammed 1 | . . . 1 . . . . . . . . . . . . . . . . . . . . . . Targets Rammed 1 | . . . 1 . . . . . . . . . . . . . . . . . . . . . . Kicked . | . . . . . . . . . . . . . . . . . . . . . . . . . . Crushed . | . . . . . . . . . . . . . . . . . . . . . . . . . . Highest Temperature 343 | 40 . 67 12 90 . . . 133 321 112 160 124 60 . 111 134 242 196 266 1 198 . 21 58 343 Average Temperature 58 | 13 . 24 7 25 . . . 46 94 45 65 33 25 . 33 49 112 149 79 1 48 . 6 24 83 Received Heat Transfer 643 | . . 96 165 . . . . 72 18 . . . . . 97 21 . . . . 51 . 9 . 114 Effects 1 | . . . . . . . . . . . . . . . . . . . . . . . . . 1 Shutdowns 1 | . . . . . . . . . . . . . . . . . . . . . . . . . 1 Siege Activations 3 | . . . . . . . . . . . . . . . . . . . . . 3 . . . . Total Turns 31 | . . . . . . . . . . . . . . . . . . . . . 31 . . . . Longest Duration 11 | . . . . . . . . . . . . . . . . . . . . . 11 . . . . Martial Activations . | . . . . . . . . . . . . . . . . . . . . . . . . . . Shielding Activations . | . . . . . . . . . . . . . . . . . . . . . . . . . . Robots Disrupted 1 | . . . . . . . . . . . . . . 1 . . . . . . . . . . . Combat Hostiles . | . . . . . . . . . . . . . . . . . . . . . . . . . . Robots Corrupted . | . . . . . . . . . . . . . . . . . . . . . . . . . . Combat Hostiles . | . . . . . . . . . . . . . . . . . . . . . . . . . . Parts Fried . | . . . . . . . . . . . . . . . . . . . . . . . . . . Impact Corruptions . | . . . . . . . . . . . . . . . . . . . . . . . . . . Robots Melted 2 | . . . . . . . . . . . . . . . . . . . . . . . . 1 1 Combat Hostiles 1 | . . . . . . . . . . . . . . . . . . . . . . . . 1 . Parts Melted 8 | 1 . 1 . . . . . . . . . . . . . . . . . . . . . 1 5 Heat Transferred 4101 | 625 . 500 1080 375 . . . . 24 . . . . 300 375 . . 200 . . . . . 36 586 Parts Sabotaged . | . . . . . . . . . . . . . . . . . . . . . . . . . . Parts Stolen . | . . . . . . . . . . . . . . . . . . . . . . . . . . Parts Stripped . | . . . . . . . . . . . . . . . . . . . . . . . . . . Power Chain Reactions 1 | . . . . 1 . . . . . . . . . . . . . . . . . . . . . Alert | -11 -10 -10 -10 -7 -7 -5 -5 -5 -5 -5 -5 -5 -4 -4 -4 -4 -4 -4 -3 -3 -3 -3 -2 -2 -2 ------- Run | Yrd Mat Min Sub Rec Scr Fac Was Fac Ext Cet Arc Hub Fac Was Fac Upp Upp Zhi Pro Res Arm Lab Res Qua Frg Maximum Alert Level 5 | . . . . . . . . 3 5 4 2 3 2 . 5 . . . . . 3 . 3 2 5 Low Security (%) 46 | 100 100 100 . 100 . 100 100 19 . . 77 44 . 100 20 . . . . 100 51 . 53 . . Level 1 9 | . . . . . . . . 13 17 . 14 18 73 . 7 . . . . . 16 . 17 . 2 Level 2 17 | . . . . . . . . 62 21 . 7 . 26 . 12 . . . . . 17 . 18 100 27 Level 3 8 | . . . . . . . . 3 24 67 . 37 . . 13 . . . . . 13 . 10 . 5 Level 4 5 | . . . . . . . . . 28 32 . . . . 13 . . . . . . . . . 7 Level 5 11 | . . . . . . . . . . . . . . . 31 . . . . . . . . . 57 High Security . | . . . . . . . . . 7 . . . . . . . . . . . . . . . . Max Security . | . . . . . . . . . . . . . . . . . . . . . . . . . . Peak Influence 6064 | 15 10 92 . 36 . 6 32 717 1686 1143 483 854 461 148 2378 . . . . 120 953 . 748 626 6064 Initial 1100 | . . . . 7 . . 2 . 256 1100 378 . 396 148 . . . . . 90 12 . . 420 318 Average 707 | 3 1 18 . 4 . . 8 410 928 1060 97 379 384 47 1028 . . . . 49 301 . 282 550 2546 Influence Increases 19290 | 40 16 142 37 157 . 6 34 1297 1906 297 162 983 189 40 3366 85 90 10 430 312 1463 . 1194 476 6558 Destroy 0b10 Robot/C 6940 | . . 100 20 . . . . 220 760 160 80 200 . . 580 20 80 . 180 . 600 . 180 80 3680 Destroy 0b10 Robot/NC 705 | 40 . . . 25 . 5 . 75 50 10 5 90 . . 105 5 . 10 20 25 10 . 65 20 145 Destroy Leader 1048 | . . 20 . . . . . 66 84 . . 34 . . 72 . 10 . 20 10 94 . 50 14 574 Allied During Kill 585 | . . 7 2 . . 1 . 20 266 104 52 6 . . 24 . . . . . . . 103 . . Trap Triggered on 0b10 10 | . . . . . . . . . . . . . . . 10 . . . . . . . . . . Successful Hack 566 | . 16 . . 55 . . . 63 . 9 . 35 16 . 118 . . . . 54 16 . 27 112 45 Select Force Hacks 60 | . . . . 60 . . . . . . . . . . . . . . . . . . . . . Disable Machine 1440 | . . . . . . . . 60 60 . 15 105 30 . 540 . . . . 30 135 . . 60 405 Destroy Structure 2336 | . . . . 17 . . 4 88 236 14 10 298 28 40 472 . . . . 48 118 . 189 75 699 Partial Spotted 270 | . . . . . . . 30 30 30 . . . . . 30 . . . . 15 45 . 45 15 30 Lose Combat Pursuer 2130 | . . 15 15 . . . . 75 120 . . 15 15 . 615 60 . . 210 30 45 . 135 . 780 Active Sensor Use 3200 | . . . . . . . . 600 300 . . 200 100 . 800 . . . . 100 400 . 400 100 200 Influence Decreases 13392 | 40 16 142 22 172 . . 40 773 744 1192 1109 172 575 465 996 1203 339 1013 295 423 540 947 446 658 1070 Entered New Map 5982 | . . . . 8 . . 4 . 268 742 569 . 415 277 . 877 239 1003 . 45 12 947 . 328 248 Time Decay 5554 | 40 16 132 22 164 . . 10 393 416 310 520 132 150 138 446 326 100 10 295 378 428 . 236 230 662 Search Patrol Dispatched 600 | . . . . . . . . 200 . . . . . . . . . . . . 100 . 100 100 100 Lost Part 150 | . . 10 . . . . . . 40 . . . . 10 30 . . . . . . . . . 60 Lost Ally 506 | . . . . . . . 26 30 20 140 20 40 10 40 70 . . . . . . . 110 . . Purge Threat 600 | . . . . . . . . 150 . . . . . . 450 . . . . . . . . . . Squads Dispatched 104 | . . . . . . . . 13 5 . . 6 8 . 28 . . . . 8 8 . 11 4 13 Investigation 62 | . . . . . . . . 11 3 . . 2 7 . 14 . . . . 6 4 . 7 1 7 Extermination 15 | . . . . . . . . 2 . . . . 1 . 4 . . . . . 2 . 2 3 1 Reinforcement 22 | . . . . . . . . . 1 . . 3 . . 8 . . . . 2 1 . 2 . 5 Assault 3 | . . . . . . . . . 1 . . . . . 1 . . . . . 1 . . . . Garrison 2 | . . . . . . . . . . . . 1 . . 1 . . . . . . . . . . Intercept . | . . . . . . . . . . . . . . . . . . . . . . . . . . Searches Triggered 6 | . . . . . . . . 2 . . . . . . . . . . . . 1 . 1 1 1 Construction Impeded 4 | . . . . . . . . . 1 . . 1 . . 2 . . . . . . . . . . Haulers Reinforced 3 | . . . . . . . . . . . . . . . 1 . . . . 1 . . 1 . . Active Scanning Responses 32 | . . . . . . . . 6 3 . . 2 1 . 8 . . . . 1 4 . 4 1 2 Cargo Convoy Interrupts . | . . . . . . . . . . . . . . . . . . . . . . . . . . Stealth | -11 -10 -10 -10 -7 -7 -5 -5 -5 -5 -5 -5 -5 -4 -4 -4 -4 -4 -4 -3 -3 -3 -3 -2 -2 -2 --------- Run | Yrd Mat Min Sub Rec Scr Fac Was Fac Ext Cet Arc Hub Fac Was Fac Upp Upp Zhi Pro Res Arm Lab Res Qua Frg Distress Signals 60 | . . . . . . . . 2 4 2 . 3 1 . 2 . . . 31 7 3 . . . 5 Communications Jammed . | . . . . . . . . . . . . . . . . . . . . . . . . . . Distress Signals . | . . . . . . . . . . . . . . . . . . . . . . . . . . Times Spotted 655 | . 3 8 24 . . . 2 21 35 10 3 6 5 6 73 4 4 . 21 6 35 . 16 11 362 Peak Tracking Total 14 | . 2 4 6 . . . 2 4 5 5 2 4 3 6 9 4 4 . 4 3 7 . 5 3 14 Tactical Retreats 70 | . . 1 1 . . . . 2 6 . . 1 1 . 17 1 . . 7 2 3 . 4 . 24 Traps | -11 -10 -10 -10 -7 -7 -5 -5 -5 -5 -5 -5 -5 -4 -4 -4 -4 -4 -4 -3 -3 -3 -3 -2 -2 -2 ------- Run | Yrd Mat Min Sub Rec Scr Fac Was Fac Ext Cet Arc Hub Fac Was Fac Upp Upp Zhi Pro Res Arm Lab Res Qua Frg Traps Triggered 30 | . 1 . 4 . . 1 . 1 6 . . 1 1 . 2 . . . 1 . 4 . . 2 6 Indirectly . | . . . . . . . . . . . . . . . . . . . . . . . . . . Trap Hack Attempts . | . . . . . . . . . . . . . . . . . . . . . . . . . . Triggered . | . . . . . . . . . . . . . . . . . . . . . . . . . . Disarmed . | . . . . . . . . . . . . . . . . . . . . . . . . . . Reprogrammed 10 | . . . . . . . . . . . . . . . 6 . . . . . . . . 4 . Reused 1 | . . . . . . . . . . . . . . . 1 . . . . . . . . . . Traps Extracted . | . . . . . . . . . . . . . . . . . . . . . . . . . . Installed 1 | . . . 1 . . . . . . . . . . . . . . . . . . . . . . Triggered 1 | . . . . . . . . . . . . . . . 1 . . . . . . . . . . Most Traps Carried 3 | . . . . . 3 1 . . . . . . . . . . . . . . . . . . . Objects Rigged 13 | . . . . . . . . . . . . . . . 13 . . . . . . . . . . Exploded 2 | . . . . . . . . . . . . . . . 2 . . . . . . . . . . Machines | -11 -10 -10 -10 -7 -7 -5 -5 -5 -5 -5 -5 -5 -4 -4 -4 -4 -4 -4 -3 -3 -3 -3 -2 -2 -2 ---------- Run | Yrd Mat Min Sub Rec Scr Fac Was Fac Ext Cet Arc Hub Fac Was Fac Upp Upp Zhi Pro Res Arm Lab Res Qua Frg Machines Disabled 107 | . . . 1 . . . . 4 5 1 1 7 2 . 36 . . . 3 2 9 5 . 4 27 Max in Single Turn 12 | . . . 1 . . . . 1 1 1 1 . 1 . 12 . . . 1 1 1 1 . 1 1 Garrison Access 6 | . . . . . . . . . . . . 1 . . 1 . . . . 2 . . . 1 1 Network Hub 1 | . . . . . . . . . . . . 1 . . . . . . . . . . . . . Machines Repaired . | . . . . . . . . . . . . . . . . . . . . . . . . . . Machines Dismantled 1 | . . . . . . . . . 1 . . . . . . . . . . . . . . . . Machines Sabotaged . | . . . . . . . . . . . . . . . . . . . . . . . . . . Overloaded Fab Kills . | . . . . . . . . . . . . . . . . . . . . . . . . . . Hacking | -11 -10 -10 -10 -7 -7 -5 -5 -5 -5 -5 -5 -5 -4 -4 -4 -4 -4 -4 -3 -3 -3 -3 -2 -2 -2 --------- Run | Yrd Mat Min Sub Rec Scr Fac Was Fac Ext Cet Arc Hub Fac Was Fac Upp Upp Zhi Pro Res Arm Lab Res Qua Frg Machines Accessed 135 | . 3 . 3 9 3 1 . 18 8 2 . 8 10 . 19 1 . 4 1 13 4 . 6 11 11 Terminals 70 | . 3 . . 6 . . . 9 8 2 . 6 3 . 8 . . . 1 6 3 . 4 7 4 Fabricators 11 | . . . . . . . . 2 . . . . 1 . 1 . . . . 2 1 . . . 4 Repair Stations 6 | . . . . . . 1 . 1 . . . . . . 2 . . . . . . . . 2 . Recycling Units 23 | . . . . 3 . . . 3 . . . . 5 . 6 . . . . 3 . . 2 . 1 Scanalyzers 8 | . . . . . . . . 3 . . . . 1 . 1 . . . . 1 . . . 1 1 Garrison Access 6 | . . . . . . . . . . . . 2 . . 1 . . . . 1 . . . 1 1 Total Hacks 365 | . 12 . 6 22 10 2 . 45 14 5 . 12 17 . 71 1 . 17 1 32 16 . 12 36 34 Successful 217 | . 7 . 6 9 10 . . 28 2 2 . 5 13 . 47 1 . 17 1 16 12 . 5 17 19 Failed 145 | . 5 . . 12 . 2 . 17 12 3 . 7 3 . 24 . . . . 15 4 . 7 19 15 Catastrophic 22 | . . . . 2 . . . 1 2 . . 4 . . 2 . . . . 1 1 . 4 3 2 Database Lockouts 3 | . . . . 1 . . . . . . . . 1 . . . . . . 1 . . . . . Manual 160 | . 12 . . 13 . . . 16 6 1 . 4 12 . 28 . . . . 23 8 . 8 15 14 Terminals 196 | . 12 . . 12 . . . 19 14 5 . 9 9 . 40 . . . 1 15 7 . 9 29 15 Fabricators 41 | . . . . . . . . 6 . . . . 2 . 5 . . . . 7 9 . . . 12 Repair Stations 16 | . . . . . . 2 . 4 . . . . . . 5 . . . . . . . . 5 . Recycling Units 47 | . . . . 10 . . . 3 . . . . 5 . 16 . . . . 8 . . 3 . 2 Scanalyzers 21 | . . . . . . . . 13 . . . . 1 . 3 . . . . 1 . . . 1 2 Garrison Access 10 | . . . . . . . . . . . . 3 . . 2 . . . . 1 . . . 1 3 Terminal Hacks 97 | . 2 . 6 2 10 . . 5 2 2 . 4 3 . 17 1 . 17 1 5 4 . 1 8 7 Record 25 | . . . 4 . 9 . . . . 1 . . . . . . . 5 1 . . . . . 5 Part Schematic 8 | . . . . 1 . . . . . . . . 1 . . . . 4 . 2 . . . . . Robot Analysis 8 | . 2 . . 1 . . . . . . . . . . 1 . . 4 . . . . . . . Prototype ID Bank 4 | . . . . . . . . . . . . . . . . . . 4 . . . . . . . Open Door 8 | . . . 1 . . . . 1 2 1 . . . . . 1 . . . . 2 . . . . Level Access Points 2 | . . . . . . . . . . . . 1 . . 1 . . . . . . . . . . Branch Access Points 4 | . . . . . . . . 1 . . . . . . 1 . . . . 1 . . 1 . . Recycling Unit Index 2 | . . . . . . . . . . . . 1 . . . . . . . 1 . . . . . Alert Level 2 | . . . . . . . . . . . . . . . 1 . . . . . 1 . . . . Unreport Threat 4 | . . . . . . . . 1 . . . . . . 3 . . . . . . . . . . Locate Traps 2 | . . . . . . . . 1 . . . . . . . . . . . . . . . . 1 Reprogram Traps 3 | . . . . . . . . . . . . . . . 1 . . . . . . . . 2 . Maintenance Status 1 | . . . . . . . . . . . . . . . . . . . . . . . . . 1 Investigation Status 1 | . . . . . . . . . . . . . . . 1 . . . . . . . . . . Recall Investigation 6 | . . . . . . . . . . . . . . . 5 . . . . . . . . 1 . Recall Extermination 2 | . . . . . . . . . . . . . 1 . . . . . . . . . . 1 . Recall Reinforcements 1 | . . . . . . . . . . . . . . . . . . . . . 1 . . . . Recall Assault 1 | . . . . . . . . . . . . . . . 1 . . . . . . . . . . Hauler Manifests 2 | . . . . . . . . . . . . 1 . . . . . . . . . . . 1 . Registered Components 2 | . . . . . . . . . . . . . 1 . . . . . . . . . . 1 . Registered Prototypes 3 | . . . . . . . . . . . . . . . 1 . . . . 1 . . . 1 . Zone Layout 4 | . . . . . . . . 1 . . . 1 . . 1 . . . . . . . . 1 . Proto ID Catalog 2 | . . . 1 . 1 . . . . . . . . . . . . . . . . . . . . Fabricator Hacks 19 | . . . . . . . . 3 . . . . 1 . 3 . . . . 2 5 . . . 5 Network Status 1 | . . . . . . . . . . . . . . . 1 . . . . . . . . . . Load Schematic 12 | . . . . . . . . 2 . . . . 1 . 1 . . . . 2 3 . . . 3 Build 6 | . . . . . . . . 1 . . . . . . 1 . . . . . 2 . . . 2 Repair Station Hacks 8 | . . . . . . . . 2 . . . . . . 3 . . . . . . . . 3 . Scan Component 4 | . . . . . . . . 1 . . . . . . 1 . . . . . . . . 2 . Repair 3 | . . . . . . . . 1 . . . . . . 1 . . . . . . . . 1 . Refit 1 | . . . . . . . . . . . . . . . 1 . . . . . . . . . . Recycling Unit Hacks 7 | . . . . 2 . . . . . . . . . . 5 . . . . . . . . . . Recycle Component 3 | . . . . . . . . . . . . . . . 3 . . . . . . . . . . Process 1 | . . . . . . . . . . . . . . . 1 . . . . . . . . . . Retrieve Matter 1 | . . . . . . . . . . . . . . . 1 . . . . . . . . . . Retrieve Components 2 | . . . . 2 . . . . . . . . . . . . . . . . . . . . . Scanalyzer 14 | . . . . . . . . 10 . . . . . . 3 . . . . 1 . . . . . Insert Component 2 | . . . . . . . . 2 . . . . . . . . . . . . . . . . . Analyze 4 | . . . . . . . . 4 . . . . . . . . . . . . . . . . . Retrieve Study 8 | . . . . . . . . 4 . . . . . . 3 . . . . 1 . . . . . Garrison Access Hacks 5 | . . . . . . . . . . . . 1 . . 1 . . . . 1 . . . 1 1 Seal Access 5 | . . . . . . . . . . . . 1 . . 1 . . . . 1 . . . 1 1 Unauthorized Hacks 67 | . 5 . . 5 . . . 8 . . . . 9 . 15 . . . . 7 3 . 4 5 6 Terminals 34 | . 5 . . 3 . . . 3 . . . . 3 . 7 . . . . 3 2 . 2 4 2 Track 4 | . . . . . . . . . . . . . . . . . . . . . 1 . . 2 1 Assimilate 6 | . 1 . . . . . . 1 . . . . 1 . 1 . . . . 1 . . 1 . . Botnet 15 | . 1 . . 2 . . . 2 . . . . 2 . 2 . . . . 2 . . 1 2 1 Detonate 1 | . . . . . . . . . . . . . . . 1 . . . . . . . . . . Disrupt 1 | . . . . . . . . . . . . . . . 1 . . . . . . . . . . Operators 3 | . 1 . . . . . . . . . . . . . 1 . . . . . 1 . . . . Skim 4 | . 2 . . 1 . . . . . . . . . . 1 . . . . . . . . . . Fabricators 10 | . . . . . . . . 2 . . . . 1 . 2 . . . . 2 1 . . . 2 Prioritize 3 | . . . . . . . . 1 . . . . . . 1 . . . . . 1 . . . . Haulers 1 | . . . . . . . . . . . . . . . 1 . . . . . . . . . . Recompile 6 | . . . . . . . . 1 . . . . 1 . . . . . . 2 . . . . 2 Repair Stations . | . . . . . . . . . . . . . . . . . . . . . . . . . . Recycling Units 21 | . . . . 2 . . . 3 . . . . 5 . 6 . . . . 2 . . 2 . 1 Tunnel 2 | . . . . 2 . . . . . . . . . . . . . . . . . . . . . Fedlink 18 | . . . . . . . . 3 . . . . 5 . 6 . . . . 2 . . 1 . 1 Scrapoids 1 | . . . . . . . . . . . . . . . . . . . . . . . 1 . . Scanalyzers 2 | . . . . . . . . . . . . . . . . . . . . . . . . 1 1 Researchers 2 | . . . . . . . . . . . . . . . . . . . . . . . . 1 1 Garrison Access . | . . . . . . . . . . . . . . . . . . . . . . . . . . Data Cores Recovered . | . . . . . . . . . . . . . . . . . . . . . . . . . . Used . | . . . . . . . . . . . . . . . . . . . . . . . . . . Hacking Detections 74 | . 3 . . 5 . 1 . 12 6 . . 3 3 . 12 . . . . 7 2 . 4 8 8 Full Trace Events 4 | . . . . 1 . . . 1 . . . . . . . . . . . 1 . . 1 . . Feedback Events . | . . . . . . . . . . . . . . . . . . . . . . . . . . Feedback Blocked . | . . . . . . . . . . . . . . . . . . . . . . . . . . Robot Schematics Acquired . | . . . . . . . . . . . . . . . . . . . . . . . . . . Robots Built . | . . . . . . . . . . . . . . . . . . . . . . . . . . Authchips . | . . . . . . . . . . . . . . . . . . . . . . . . . . Time . | . . . . . . . . . . . . . . . . . . . . . . . . . . Total Robot Build Rating . | . . . . . . . . . . . . . . . . . . . . . . . . . . Part Schematics Acquired 10 | . . . . 1 . . . 1 . . . . 1 . . . . 4 . 2 . . . . 1 Parts Built 7 | . . . . . . . . 1 . . . . . . 2 . . . . . 2 . . . 2 Authchips 6 | . . . . . . . . 1 . . . . . . 1 . . . . . 2 . . . 2 Time 493 | . . . . . . . . 84 . . . . . . 95 . . . . . 166 . . . 148 Total Part Build Rating 52 | . . . . . . . . 6 . . . . . . 10 . . . . . 18 . . . 18 Part Studies Acquired 8 | . . . . . . . . 4 . . . . . . 3 . . . . 1 . . . . . Parts Repaired 3 | . . . . . . . . 1 . . . . . . 1 . . . . . . . . 1 . Time 143 | . . . . . . . . 56 . . . . . . 50 . . . . . . . . 37 . Parts Recycled 3 | . . . . . . . . . . . . . . . 3 . . . . . . . . . . Recycled Matter 498 | . . . . . . . . . . . . . . . 498 . . . . . . . . . . Retrieved Matter . | . . . . . . . . . . . . . . . . . . . . . . . . . . Retrieved Components 1 | . . . . 1 . . . . . . . . . . . . . . . . . . . . . Parts Scanalyzed 1 | . . . . . . . . 1 . . . . . . . . . . . . . . . . . Part Schematics Acquired 1 | . . . . . . . . 1 . . . . . . . . . . . . . . . . . Parts Damaged . | . . . . . . . . . . . . . . . . . . . . . . . . . . Bothacking | -11 -10 -10 -10 -7 -7 -5 -5 -5 -5 -5 -5 -5 -4 -4 -4 -4 -4 -4 -3 -3 -3 -3 -2 -2 -2 ------------ Run | Yrd Mat Min Sub Rec Scr Fac Was Fac Ext Cet Arc Hub Fac Was Fac Upp Upp Zhi Pro Res Arm Lab Res Qua Frg Used RIF Installer . | . . . . . . . . . . . . . . . . . . . . . . . . . . Robots Hacked 7 | . . . . . 1 . . . . . . . . . 2 . . . . 1 . . 3 . . Non-combat 4 | . . . . . . . . . . . . . . . 2 . . . . 1 . . 1 . . Combat 2 | . . . . . 1 . . . . . . . . . . . . . . . . . 1 . . Robot Hacks Applied 7 | . . . . . 1 . . . . . . . . . 2 . . . . 2 . . 2 . . parse_system 2 | . . . . . 1 . . . . . . . . . . . . . . . . . 1 . . no_distress 1 | . . . . . . . . . . . . . . . 1 . . . . . . . . . . find_recycling 4 | . . . . . . . . . . . . . . . 1 . . . . 2 . . 1 . . Manual 1 | . . . . . . . . . . . . . . . . . . . . . . . 1 . . Relay Couplers Released 2 | . . . . . . . . . . . . . . . . . . . . 2 . . . . . Machine Destruction 2 | . . . . . . . . . . . . . . . . . . . . 2 . . . . . Fabnet Peak Effective % . | . . . . . . . . . . . . . . . . . . . . . . . . . . Robots Rewired 13 | . . . . . . . . . 13 . . . . . . . . . . . . . . . . Allies Hacked 1 | . . . . . . . . . . . . . . . 1 . . . . . . . . . . Hacks Repelled . | . . . . . . . . . . . . . . . . . . . . . . . . . . Allies | -11 -10 -10 -10 -7 -7 -5 -5 -5 -5 -5 -5 -5 -4 -4 -4 -4 -4 -4 -3 -3 -3 -3 -2 -2 -2 -------- Run | Yrd Mat Min Sub Rec Scr Fac Was Fac Ext Cet Arc Hub Fac Was Fac Upp Upp Zhi Pro Res Arm Lab Res Qua Frg Total Allies 59 | . 1 3 . . 5 . 1 1 16 5 . . 1 18 1 . . . . 1 . . 6 . . Largest Group 18 | . 1 3 3 . 5 5 3 1 11 7 3 2 1 18 6 . . . . 1 . . 5 . . Highest-Rated Group 663 | . 10 51 51 . 235 235 141 47 461 663 281 192 26 656 268 . . . . 45 . . 329 . . Highest-Rated Ally 159 | . 10 31 31 . 47 47 47 47 159 152 96 96 26 50 46 . . . . 45 . . 67 . . Total Orders 11 | . . . 6 . . . . . . . 1 4 . . . . . . . . . . . . . STAY 7 | . . . 3 . . . . . . . 1 3 . . . . . . . . . . . . . FOLLOW 4 | . . . 3 . . . . . . . . 1 . . . . . . . . . . . . . Ally Attacks 371 | . . 5 7 . . . 19 21 107 35 11 15 . 91 11 . . . . . . . 49 . . Total Damage 15489 | . . 42 107 . . . 325 409 3083 1175 486 2818 . 5765 213 . . . . . . . 1066 . . Kills 87 | . . 2 1 . . . 1 9 26 3 2 23 . 14 . . . . . . . . 6 . . Allies Corrupted 4 | . . . . . . . . . . . . . . . 3 . . . . . . . 1 . . Allies Melted . | . . . . . . . . . . . . . . . . . . . . . . . . . . Intel | -11 -10 -10 -10 -7 -7 -5 -5 -5 -5 -5 -5 -5 -4 -4 -4 -4 -4 -4 -3 -3 -3 -3 -2 -2 -2 ------- Run | Yrd Mat Min Sub Rec Scr Fac Was Fac Ext Cet Arc Hub Fac Was Fac Upp Upp Zhi Pro Res Arm Lab Res Qua Frg Active Infowar (turns) 19474 | . 84 779 861 69 1626 58 44 969 1096 695 3191 308 302 435 1287 736 210 99 986 886 1041 177 528 496 2511 Optics 6798 | . . . 182 . . . . . . . . . . . . . . . 977 886 1041 177 528 496 2511 A.S.S. 9944 | . . . . . . 58 44 968 1096 3 . 308 302 435 1287 736 210 99 986 886 1041 177 528 495 285 Structural 409 | . . . 409 . . . . . . . . . . . . . . . . . . . . . . Seismic 1534 | . 84 779 671 . . . . . . . . . . . . . . . . . . . . . . Machine Analysis 14352 | . . . . 69 1626 . . 944 728 695 3191 308 302 435 1287 736 210 99 986 886 1041 177 528 104 . Cloaking 2 | . . . . . . . . . . . . . . 2 . . . . . . . . . . . Robot Analysis Total 8 | . 2 . . 1 . . . . . . . . . . 1 . . 4 . . . . . . . Derelict Logs Recovered 7 | . . 1 2 . 2 . . . . . . . . . . 2 . . . . . . . . . Drone Launches . | . . . . . . . . . . . . . . . . . . . . . . . . . . Drone Recoveries . | . . . . . . . . . . . . . . . . . . . . . . . . . . Exploration | -11 -10 -10 -10 -7 -7 -5 -5 -5 -5 -5 -5 -5 -4 -4 -4 -4 -4 -4 -3 -3 -3 -3 -2 -2 -2 ------------- Run | Yrd Mat Min Sub Rec Scr Fac Was Fac Ext Cet Arc Hub Fac Was Fac Upp Upp Zhi Pro Res Arm Lab Res Qua Frg Turns Passed 29364 | 227 88 779 6040 945 5230 59 44 969 1096 695 3191 308 302 435 1287 736 210 99 986 886 1041 177 528 496 2510 Spaces Moved 29953 | 101 164 622 3155 557 3341 81 99 1528 1077 293 689 586 684 447 2418 839 525 161 1819 1586 1402 312 1143 1159 5165 Core 617 | 101 164 254 51 . 4 . . . . . . . . 20 . . . . . . 19 . . 4 . Treads 925 | . . 368 557 . . . . . . . . . . . . . . . . . . . . . . Legs 564 | . . . 564 . . . . . . . . . . . . . . . . . . . . . . Wheels 5877 | . . . 1983 557 3337 . . . . . . . . . . . . . . . . . . . . Hover . | . . . . . . . . . . . . . . . . . . . . . . . . . . Flight 21970 | . . . . . . 81 99 1528 1077 293 689 586 684 427 2418 839 525 161 1819 1586 1383 312 1143 1155 5165 Fastest Speed 6 | 50 50 50 120 100 95 32 32 32 32 32 32 32 32 32 32 37 37 37 37 37 26 26 17 22 6 Average Speed 69 | 50 50 115 154 126 149 32 32 32 33 32 451 32 32 74 34 37 37 37 37 37 33 26 26 26 13 Slowest Speed 675 | 50 50 160 600 130 650 32 32 32 98 32 675 32 32 150 37 37 37 37 37 37 150 26 169 200 69 Overloaded Moves 354 | . . . . . . . . . . . . . . . . . . . . . . . 16 83 255 Propulsion Burnouts . | . . . . . . . . . . . . . . . . . . . . . . . . . . Robots Hopped 86 | . . . . . . . . 12 9 . . 10 1 . 5 2 . . . 13 . . 13 5 16 Potential Cave-ins . | . . . . . . . . . . . . . . . . . . . . . . . . . . Cave-ins Triggered . | . . . . . . . . . . . . . . . . . . . . . . . . . . Teleports 1 | . . . . . . . . . . . . . . . . . . . . . 1 . . . . Exploration Rate (%) 62 | 4 34 99 80 66 96 4 80 34 82 76 98 41 13 96 56 62 63 61 90 42 48 95 27 96 71 Regions Visited 25 Branch Regions 16 Pre-discovered Areas 9 | . . 1 2 2 . . . 1 . . . . . . . . . 3 . . . . . . . Known Exits Taken 14 | . . . 1 . . . . 1 1 . . 1 . . 1 1 1 1 1 1 1 1 1 1 . Unknown Exits Taken 7 | 1 1 1 . 1 1 . . . . 1 1 . . . . . . . . . . . . . . Scrap Searched 35 | . . 1 16 . 13 . . . . . . . . . . 3 1 . 1 . . . . . . Spaces Dug 467 | . . . 5 8 . . . 22 43 . . 12 10 . 113 13 . . 23 23 25 . 28 16 126 Terrain Destroyed 1123 | . . . 38 20 . . . 36 192 5 5 12 15 2 241 33 2 . 53 35 63 . 35 24 312 Melee 139 | . . . . . . . . 11 . . . 8 3 . 29 . . . . 8 24 . 26 15 15 Projectile 558 | . . . 17 17 . . . 25 53 5 5 4 12 2 52 33 2 . 53 27 14 . 9 9 219 AOE 424 | . . . 21 3 . . . . 139 . . . . . 160 . . . . . 25 . . . 76 Terrain Rammed . | . . . . . . . . . . . . . . . . . . . . . . . . . . Walls Destroyed . | . . . . . . . . . . . . . . . . . . . . . . . . . . Machines Disabled . | . . . . . . . . . . . . . . . . . . . . . . . . . . Actions | -11 -10 -10 -10 -7 -7 -5 -5 -5 -5 -5 -5 -5 -4 -4 -4 -4 -4 -4 -3 -3 -3 -3 -2 -2 -2 --------- Run | Yrd Mat Min Sub Rec Scr Fac Was Fac Ext Cet Arc Hub Fac Was Fac Upp Upp Zhi Pro Res Arm Lab Res Qua Frg Total 37003 | 240 169 652 4158 751 3566 112 111 1879 1716 873 750 671 754 526 2725 1235 536 191 2057 1812 1807 393 1278 1303 6738 Wait 4063 | 107 1 4 784 132 126 . 10 205 274 537 39 45 39 44 71 363 1 . 140 149 197 52 56 80 607 Move 29768 | 100 163 621 3155 556 3340 81 98 1504 1058 292 688 568 682 446 2408 834 524 160 1818 1559 1401 311 1117 1148 5136 Hop 77 | . . . . . . . . 11 9 . . 7 1 . 4 2 . . . 13 . . 12 5 13 Pick Up 241 | 8 . 7 28 3 72 4 1 10 9 4 . 2 6 1 24 3 3 6 4 6 9 6 4 3 18 Fast Attach 130 | . . . 11 6 5 5 . 10 12 4 2 7 1 3 17 . . 3 . 3 5 2 . 6 28 Attach 146 | 2 5 2 8 2 3 11 . 13 17 1 . 5 4 1 20 . 1 4 1 2 12 3 1 2 26 Detach 85 | 1 . . . 1 . 2 . 9 18 . . 5 2 2 17 . . . . 2 8 2 . 2 14 Swap 102 | . . 1 14 4 1 1 . 5 2 7 5 1 1 1 6 3 . . 2 9 14 . 10 1 14 Drop 249 | 3 . . 43 7 18 6 2 16 15 8 2 9 5 4 34 3 2 8 3 10 8 6 3 6 28 Fire 1586 | 19 . 17 100 37 . 2 . 50 86 20 14 8 8 22 66 27 5 8 74 46 91 . 38 30 818 Melee 263 | . . . . . 1 . . 43 1 . . 11 3 1 53 . . 2 . 8 55 11 35 20 19 Ram . | . . . . . . . . . . . . . . . . . . . . . . . . . . Kick . | . . . . . . . . . . . . . . . . . . . . . . . . . . Crush . | . . . . . . . . . . . . . . . . . . . . . . . . . . Escape Stasis 129 | . . . . . . . . . 90 . . . . . . . . . 15 . 7 . . . 17 Rewire 117 | . . . . . . . . . 116 . . . . 1 . . . . . . . . . . . Trap 1 | . . . 1 . . . . . . . . . . . . . . . . . . . . . . Miscellaneous 46 | . . . 14 3 . . . 3 9 . . 3 2 . 5 . . . . 5 . . 2 . . Route ------- -11/Scrapyard -10/Materials -10/Mines (discovered 4 exits: [*Mat x2] / [*Exi] / *Sub) -10/Subcaves (discovered 3 exits: [*Mat x2] / *Rec) -7/Recycling (discovered 2 exits: *Fac / *Scr) -7/Scraptown (discovered 2 exits: *Fac x2) -5/Factory -5/Waste -5/Factory (discovered 4 exits: Upp x2 / *Ext x2) -5/Extension (discovered 2 exits: *Fac / *Cet) -5/Cetus (discovered 2 exits: *Fac / [*Arc]) -5/Archives (discovered 3 exits: *Fac / *Hub x2) -5/Hub_04(d) (discovered 4 exits: *Fac x4) -4/Factory -4/Waste -4/Factory (discovered 6 exits: *Res x4 / *Upp x2) -4/Upper Caves -4/Upper Caves -4/Zhirov -3/Proximity Caves -3/Research (discovered 4 exits: *Res / *Arm / Tes x2) -3/Armory -3/Lab -2/Research (discovered 3 exits: [*Acc] / *Qua x2) -2/Quarantine (discovered 3 exits: [*Acc] / [*Sec] / *Frg) -2/Protoforge 0bPrime History --------- Turn | Location | Event 6 | -11/Scrapyard | Discovered new exit (range 16) 228 | -11/Scrapyard | Entered Materials 291 | -10/Materials | Discovered new exit (range 16) 312 | -10/Materials | Build established: Mutant 316 | -10/Materials | Entered Mines 316 | -10/Mines | Accompanied by 1 ally 326 | -10/Mines | Received a Mining Laser from a helpful Derelict 379 | -10/Mines | A weapon hastily lodged in a ceiling crevice suddenly fell to the ground 405 | -10/Mines | Discovered new exit (range 7) 552 | -10/Mines | Assembled infested the area 557 | -10/Mines | Assisted by a Guerilla fighting off Assembled 700 | -10/Mines | Discovered new exit (range 16) 930 | -10/Mines | Deemed a non-threat by the Exiles lab entrance 930 | -10/Mines | Discovered new exit (range 5) 1081 | -10/Mines | Discovered new exit (range 6) 1095 | -10/Mines | Entered Subcaves 1095 | -10/Subcaves | Accompanied by 3 allies 1100 | -10/Subcaves | Led the pair of lost Derelicts to an unsafe place 1342 | -10/Subcaves | Disturbed a concealed Subdweller 1509 | -10/Subcaves | Learned Materials security intel 1651 | -10/Subcaves | Build established: Scavenger-Mutant 1807 | -10/Subcaves | Lost 3 parts (1n2u) 1853 | -10/Subcaves | Core integrity fell below 50% 1918 | -10/Subcaves | Discovered new exit (range 20) 2006 | -10/Subcaves | Disturbed a concealed Subdweller 2287 | -10/Subcaves | Build established: Subdweller-Mutant 2297 | -10/Subcaves | Disturbed a concealed Subdweller 2606 | -10/Subcaves | Shifting Twisted Machinery released Battle Cannon 2629 | -10/Subcaves | Shifting Twisted Machinery released Battle Rifle 2778 | -10/Subcaves | Visited 4L-MR0's lab 3103 | -10/Subcaves | Discovered new exit (range 16) 3241 | -10/Subcaves | Shifting Twisted Machinery released Ripper 3251 | -10/Subcaves | Shifting Twisted Machinery released Spk. Treads 3825 | -10/Subcaves | Learned location of Storage (-7) 3920 | -10/Subcaves | Visited Clippyterm 3924 | -10/Subcaves | Identified exit to Recycling 3989 | -10/Subcaves | Learned location of Zion (-7) 3989 | -10/Subcaves | Met a Zionite searching for "candidates" 4053 | -10/Subcaves | Core integrity fell below 20% 6357 | -10/Subcaves | Ambushed by Subdweller buried in earth 7008 | -10/Subcaves | Found Flightbrick 7135 | -10/Subcaves | Entered Recycling 7575 | -7/Recycling | Discovered new exit (range 16) 7696 | -7/Recycling | Scanned before Scraplab entrance 7715 | -7/Recycling | Entered Scraplab 7740 | -7/Recycling | Build established: Mutant 8079 | -7/Recycling | Discovered new exit (range 2) 8080 | -7/Recycling | Entered Scraptown 8352 | -7/Scraptown | Discovered new exit (range 7) 8418 | -7/Scraptown | Scanned Subdweller tech in exchange for log data 8420 | -7/Scraptown | Learned Research stockpile data 8421 | -7/Scraptown | Learned Factory emergency access door positions 8544 | -7/Scraptown | Visited Bundlers 8599 | -7/Scraptown | Visited Cyclists 8625 | -7/Scraptown | Visited SPCMW 8653 | -7/Scraptown | Visited CPS Storage 8681 | -7/Scraptown | Visited TADAMA 8700 | -7/Scraptown | Visited The Evicted 8715 | -7/Scraptown | Visited UFD Registry 8715 | -7/Scraptown | Registered with UFD as "Gearwalker" 8737 | -7/Scraptown | Visited Shadow of the Wyrm 8949 | -7/Scraptown | Visited A0-MCA Data Center 8955 | -7/Scraptown | Given an A- rating by A0-MCA 8976 | -7/Scraptown | Visited Chapter 10 8996 | -7/Scraptown | Visited Scrapoid Research Area 9035 | -7/Scraptown | Visited Infowarlord's Domain 9065 | -7/Scraptown | Delivered Scrap Shield to a Scientist 9206 | -7/Scraptown | Visited Derelict Rescue Squad 9213 | -7/Scraptown | Found DRS Beacon 9235 | -7/Scraptown | Visited DA-N13 Charitable Foundation 9239 | -7/Scraptown | Found DCF Scrap (30 items) 9317 | -7/Scraptown | Visited Supply Room 9422 | -7/Scraptown | Visited Abandonware Association 9432 | -7/Scraptown | Learned abandonware demo "OVRCLOCK.EXE" 9436 | -7/Scraptown | Learned abandonware demo "REBOOT5.EXE" 9465 | -7/Scraptown | Visited Science Guys 9509 | -7/Scraptown | Visited Scrapoid Pod Storage 9597 | -7/Scraptown | Entered Cyclist Reading Room 9708 | -7/Scraptown | Found Scrapoid Pod 10058 | -7/Scraptown | Scrapoid Pod released 07S06-D (x5) 10397 | -7/Scraptown | Build established: Hauler-Mutant 10409 | -7/Scraptown | Found Active Sensor Suite 10507 | -7/Scraptown | Found A0-MCA's Component Scanner 11431 | -7/Scraptown | Guru changed UFD alias to "Roughcycle" 13207 | -7/Scraptown | Met Optimus 13207 | -7/Scraptown | Accepted into 0bPrime 13306 | -7/Scraptown | Discovered new exit (range 3) 13310 | -7/Scraptown | Entered Factory 13310 | -5/Factory | Accompanied by 5 allies 13310 | -5/Factory | Evolved 10 slots: Power x1, Propulsion x4, Utility x5 13311 | -5/Factory | Attached Flightbrick, gained temporary slots: Utility x3 13369 | -5/Factory | Sucked down chute 13369 | -5/Factory | Entered Waste 13370 | -5/Waste | Met a frightened Derelict 13372 | -5/Waste | Spotted C-40 Crusher 13381 | -5/Waste | Spotted C-40 Crusher 13381 | -5/Waste | Spotted C-40 Crusher 13384 | -5/Waste | EMP discharged 13385 | -5/Waste | Spotted C-40 Crusher 13400 | -5/Waste | Discovered new exit (range 13) 13404 | -5/Waste | Identified exit to Factory 13413 | -5/Waste | Entered Factory 13418 | -5/Factory | 4 allies followed down the chute 13622 | -5/Factory | Build established: Derelict-Scout 13712 | -5/Factory | Loaded intel: 8 recycling unit locations 13848 | -5/Factory | Learned location of Protoforge (-2) 13901 | -5/Factory | Identified exit to Upper Caves 13901 | -5/Factory | Identified exit to Extension 14013 | -5/Factory | Search patrols dispatched 14222 | -5/Factory | Repaired Broken Tri-rail Accelerator 14275 | -5/Factory | Fabricated Tri-rail Accelerator (x1) 14313 | -5/Factory | Search patrols dispatched 14382 | -5/Factory | Entered Extension 14688 | -5/Extension | Rescued a captive Derelict 14705 | -5/Extension | Rescued A7 14727 | -5/Extension | Rescued a captive Derelict 14855 | -5/Extension | Destroyed B-75 Beast 14895 | -5/Extension | Spotted B-75 Beast 14904 | -5/Extension | Allies destroyed B-75 Beast 14917 | -5/Extension | Lost 3 parts (1p2u) 14982 | -5/Extension | First assault squad dispatched 15152 | -5/Extension | Lost 3 allies 15399 | -5/Extension | High security lockdown imminent 15415 | -5/Extension | Discovered new exit (range 10) 15415 | -5/Extension | Discovered new exit (range 6) 15420 | -5/Extension | Identified exit to Factory 15422 | -5/Extension | Identified exit to Cetus 15478 | -5/Extension | Entered Cetus 15478 | -5/Cetus | Accompanied by 7 allies (A7) 15483 | -5/Cetus | Acquired a Cetus Manufacturing Module code from A7 15494 | -5/Cetus | Spotted Cetus Guard 15494 | -5/Cetus | Spotted Cetus Guard 15508 | -5/Cetus | Destroyed Cetus Guard 15510 | -5/Cetus | Spotted Cetus Guard 15517 | -5/Cetus | Destroyed Cetus Guard 15543 | -5/Cetus | Lost 5 allies 15550 | -5/Cetus | Started Cetus Manufacturing Module 15558 | -5/Cetus | Escorted A7 to Cetus Mainframe 15565 | -5/Cetus | Discovered new exit (range 15) 15575 | -5/Cetus | Manufactured an Enhanced Grunt 15600 | -5/Cetus | Manufactured an Enhanced Grunt 15625 | -5/Cetus | Manufactured an Enhanced Grunt 15650 | -5/Cetus | Manufactured an Enhanced Grunt 15675 | -5/Cetus | Manufactured an Enhanced Grunt 15701 | -5/Cetus | Spotted Cetus Guard 15702 | -5/Cetus | Spotted Cetus Guard 15716 | -5/Cetus | Spotted Cetus Guard 15719 | -5/Cetus | Destroyed Cetus Guard 15724 | -5/Cetus | Destroyed Cetus Guard 15726 | -5/Cetus | Spotted Cetus Guard 15727 | -5/Cetus | Destroyed Cetus Guard 15730 | -5/Cetus | Extracted ID and sensor layout for unrecognized location from A7's data core 15742 | -5/Cetus | Found Med. Regenerative Plating 15755 | -5/Cetus | Discovered exit to Factory (range 15) 15756 | -5/Cetus | Lost 4 allies 15757 | -5/Cetus | Met Revision 17 15781 | -5/Cetus | Found a strange terminal 16038 | -5/Cetus | Build established: Scavenger-Scout 16173 | -5/Cetus | Entered Archives 16173 | -5/Archives | Accompanied by 3 allies 16288 | -5/Archives | Discovered exit to Factory (range 16) 16331 | -5/Archives | Discovered new exit (range 15) 16403 | -5/Archives | Discovered new exit (range 16) 16475 | -5/Archives | Build established: Scavenger-Skirmisher 19364 | -5/Archives | Entered Hub_04(d) 19364 | -5/Hub_04(d) | Accompanied by 2 allies 19556 | -5/Hub_04(d) | Network Hub disabled 19633 | -5/Hub_04(d) | Garrison activated, responded to threat 19636 | -5/Hub_04(d) | Build established: Scavenger-Scout 19672 | -5/Hub_04(d) | Entered Factory 19672 | -4/Factory | Evolved 2 slots: Utility x2 19803 | -4/Factory | Loaded intel: 8 recycling unit locations 19877 | -4/Factory | Central database locked down 19974 | -4/Factory | Manually triggered Chute Trap 19974 | -4/Factory | Sucked down chute 19974 | -4/Factory | Entered Waste 19977 | -4/Waste | Spotted C-40 Crusher 19981 | -4/Waste | Spotted C-40 Crusher 19982 | -4/Waste | Spotted C-40 Crusher 19985 | -4/Waste | Spotted C-40 Crusher 19990 | -4/Waste | Spotted C-40 Crusher 19990 | -4/Waste | Spotted C-40 Crusher 19994 | -4/Waste | Warlord forces began an assault 20020 | -4/Waste | Allies destroyed C-40 Crusher 20023 | -4/Waste | Allies destroyed C-40 Crusher 20029 | -4/Waste | Allies destroyed C-40 Crusher 20058 | -4/Waste | Lost 10 allies 20236 | -4/Waste | Discovered new exit (range 11) 20288 | -4/Waste | Build established: Scavenger-Skirmisher 20381 | -4/Waste | Identified exit to Factory 20409 | -4/Waste | Entered Factory 20409 | -4/Factory | Accompanied by 6 allies 20496 | -4/Factory | Repaired Lgt. Fission Core+? 20521 | -4/Factory | Fabricated Weapon Mount (x2) 20590 | -4/Factory | Build established: Scavenger-Scout 20592 | -4/Factory | Lost 3 allies 20885 | -4/Factory | Spotted B-86 Titan 20909 | -4/Factory | First assault squad dispatched 20958 | -4/Factory | Loaded intel: 8 recycling unit locations 20976 | -4/Factory | Garrison activated, responded to threat 21169 | -4/Factory | Identified exit to Research 21180 | -4/Factory | Identified exit to Upper Caves 21643 | -4/Factory | Spotted B-86 Titan 21696 | -4/Factory | Entered Upper Caves 21698 | -4/Upper Caves | UFD Scientist delivered a prototype 21699 | -4/Upper Caves | Found Enh. Scrap Shield 22377 | -4/Upper Caves | Encountered a Warlord checkpoint 22408 | -4/Upper Caves | Discovered new exit (range 7) 22419 | -4/Upper Caves | Identified exit to Upper Caves 22432 | -4/Upper Caves | Entered another Upper Caves area 22554 | -4/Upper Caves | Discovered new exit (range 4) 22555 | -4/Upper Caves | Identified exit to Zhirov 22603 | -4/Upper Caves | Encountered a Warlord checkpoint 22642 | -4/Upper Caves | Entered Zhirov 22643 | -4/Zhirov | Discovered new exit (range 3) 22650 | -4/Zhirov | Met Zhirov 22656 | -4/Zhirov | Learned location of Quarantine (-2) 22656 | -4/Zhirov | Learned location of Testing (-3) 22656 | -4/Zhirov | Learned location of Command (-1) 22662 | -4/Zhirov | Zhirov requested help retrieving the SGEMP Prototype 22670 | -4/Zhirov | Found Alien Artifact 22670 | -4/Zhirov | Identified Integrated Dissipator 22670 | -4/Zhirov | Installed Integrated Dissipator, increased core heat dissipation (+20) 22716 | -4/Zhirov | Found Alien Artifact 22736 | -4/Zhirov | Identified exit to Proximity Caves 22741 | -4/Zhirov | Entered Proximity Caves 22820 | -3/Proximity Caves | Spotted B-86 Titan 23602 | -3/Proximity Caves | Discovered exit to Research (range 19) 23727 | -3/Proximity Caves | Entered Research 23727 | -3/Research | Evolved 2 slots: Propulsion x1, Weapon x1 23746 | -3/Research | Found Spectral Analyzer 23898 | -3/Research | Spotted B-86 Titan 23927 | -3/Research | Revision forces began assault on 0b10 23985 | -3/Research | Discovered new exit (range 18) 23991 | -3/Research | Identified exit to Research 23993 | -3/Research | Discovered new exit (range 23) 24011 | -3/Research | Identified exit to Armory 24026 | -3/Research | Met up with Revision 17++ 24229 | -3/Research | Identified exit to Testing 24357 | -3/Research | Central database locked down 24358 | -3/Research | Spotted B-86 Titan 24374 | -3/Research | Loaded intel: 5 recycling unit locations 24411 | -3/Research | Lost 3 allies 24427 | -3/Research | Research terminal network offline 24613 | -3/Research | Entered Armory 25077 | -3/Armory | Build established: Hacker-Scout 25084 | -3/Armory | Spotted B-86 Titan 25204 | -3/Armory | Identified Transdimensional Reconstructor 25204 | -3/Armory | Warped through subspace to slip node 25204 | -3/Armory | Discovered new exit (range 1) 25204 | -3/Armory | Identified exit to Lab 25281 | -3/Armory | Fabricated Cld. Q-thruster? 25363 | -3/Armory | Search patrols dispatched 25432 | -3/Armory | Destroyed Armor Guard 25515 | -3/Armory | Destroyed Armor Guard 25523 | -3/Armory | Found Exp. Weapon Cycler 25563 | -3/Armory | Destroyed 8 combat bots 25613 | -3/Armory | First assault squad dispatched 25616 | -3/Armory | Fabricated Zero-point Reactor? 25654 | -3/Armory | Entered Lab 25654 | -3/Lab | Discovered exit to Research (range 9) 25657 | -3/Lab | Hidden lab's door opened automatically 25657 | -3/Lab | Sensor layout match revealed 25658 | -3/Lab | Gained access to the hidden lab's interior 25671 | -3/Lab | Found Integrated Dissipator 25671 | -3/Lab | Installed Integrated Dissipator, increased core heat dissipation (+20) 25686 | -3/Lab | Found Gui. Remote Datajack 25758 | -3/Lab | Found Alien Artifact 25758 | -3/Lab | Identified Core Expander 25758 | -3/Lab | Installed Core Expander, added new Utility slot 25770 | -3/Lab | Found Warp Cannon 25773 | -3/Lab | Found Potential Cannon 25831 | -3/Lab | Entered Research 25831 | -2/Research | Evolved 1 slot: Utility x1 25832 | -2/Research | Identified exit to Quarantine 26000 | -2/Research | Spotted B-90 Cyclops 26057 | -2/Research | Build established: Scavenger-Scout 26081 | -2/Research | Search patrols dispatched 26087 | -2/Research | Loaded intel: 4 recycling unit locations 26192 | -2/Research | Scrapoids reinforcements arrived? 26274 | -2/Research | Discovered new exit (range 21) 26282 | -2/Research | Lost 4 allies 26356 | -2/Research | Spotted B-90 Cyclops 26359 | -2/Research | Entered Quarantine 26385 | -2/Quarantine | Found Alien Artifact 26385 | -2/Quarantine | Identified Phase Redirector 26424 | -2/Quarantine | Found Alien Artifact 26509 | -2/Quarantine | Repaired Broken Tri-rail Accelerator? 26578 | -2/Quarantine | Discovered new exit (range 12) 26609 | -2/Quarantine | Search patrols dispatched 26706 | -2/Quarantine | Found Enh. Gamma Bomb Array 26728 | -2/Quarantine | Cryocooling Duct disabled 26743 | -2/Quarantine | Ambient heat levels rising (+20) 26743 | -2/Quarantine | Non-combat units ordered to evacuate 26768 | -2/Quarantine | Destroyed Fortress 26843 | -2/Quarantine | Discovered new exit (range 6) 26843 | -2/Quarantine | Discovered new exit (range 6) 26844 | -2/Quarantine | Identified exit to Protoforge 26855 | -2/Quarantine | Entered Protoforge 27098 | -2/Protoforge | Spotted Immortal 27102 | -2/Protoforge | Superfortress began startup sequence 27103 | -2/Protoforge | Spotted Immortal 27105 | -2/Protoforge | Search patrols dispatched 27144 | -2/Protoforge | Found Exp. System Purifier 27147 | -2/Protoforge | Found Cep. Weapon Articulator 27172 | -2/Protoforge | Spotted EXE-6 27172 | -2/Protoforge | Spotted EXE-6 27211 | -2/Protoforge | UFD initiated attack on Protoforge (Readiness: Maximal) 27211 | -2/Protoforge | Loaded intel: 3 recycling unit locations 27240 | -2/Protoforge | Fabricated Cld. Q-thruster? 27243 | -2/Protoforge | Fabricated Cld. Q-thruster? 27246 | -2/Protoforge | Found Exp. Core Analyzer 27247 | -2/Protoforge | Optimus greeted in Protoforge 27247 | -2/Protoforge | Found Exp. Kinecellerator 27249 | -2/Protoforge | Found Cep. XC Strikerail 27250 | -2/Protoforge | Found Cep. XC Strikerail 27281 | -2/Protoforge | Spotted EXE-6 27284 | -2/Protoforge | Spotted EXE-6 27291 | -2/Protoforge | Forge Plexus network access discovered 27319 | -2/Protoforge | Destroyed EXE-6 27325 | -2/Protoforge | Found Exp. Terror Saw 27329 | -2/Protoforge | Found Exp. Core Analyzer 27334 | -2/Protoforge | Found Cep. XC Strikerail 27338 | -2/Protoforge | Identified Terrabomb 27338 | -2/Protoforge | Used Terrabomb 27368 | -2/Protoforge | Spotted Hotshot 27370 | -2/Protoforge | Spotted Hotshot 27382 | -2/Protoforge | P-80 Master assimilated allied 02F01-K 27382 | -2/Protoforge | Spotted 02F01-K 27416 | -2/Protoforge | Lost 5 allies 27443 | -2/Protoforge | Spotted Executioner 27473 | -2/Protoforge | Spotted Executioner 27482 | -2/Protoforge | Destroyed Executioner 27486 | -2/Protoforge | Spotted Overlord 27555 | -2/Protoforge | UFD reported confirmed Drillbomb installation 27562 | -2/Protoforge | Lost 5 allies 27579 | -2/Protoforge | Spotted Executioner 27606 | -2/Protoforge | Spotted Striker 27606 | -2/Protoforge | Spotted Striker 27606 | -2/Protoforge | Spotted Executioner 27607 | -2/Protoforge | Destroyed Executioner 27608 | -2/Protoforge | Spotted Striker 27617 | -2/Protoforge | Destroyed Striker 27659 | -2/Protoforge | Destroyed 8 combat bots 27680 | -2/Protoforge | Lost 8 allies 27683 | -2/Protoforge | Spotted Executioner 27683 | -2/Protoforge | Spotted Striker 27705 | -2/Protoforge | Spotted Striker 27709 | -2/Protoforge | Spotted Striker 27712 | -2/Protoforge | Destroyed Striker 27722 | -2/Protoforge | Destroyed Executioner 27742 | -2/Protoforge | Spotted Hotshot 27742 | -2/Protoforge | Spotted Hotshot 27760 | -2/Protoforge | Destroyed 8 combat bots 27761 | -2/Protoforge | Lost 4 allies 27768 | -2/Protoforge | Destroyed Hotshot 27793 | -2/Protoforge | Spotted Striker 27796 | -2/Protoforge | Destroyed Striker 27798 | -2/Protoforge | UFD reported confirmed Drillbomb installation 27799 | -2/Protoforge | Spotted Striker 27803 | -2/Protoforge | Destroyed Striker 27810 | -2/Protoforge | Destroyed Striker 27838 | -2/Protoforge | Destroyed 10 combat bots 27843 | -2/Protoforge | Spotted Striker 27850 | -2/Protoforge | Spotted Executioner 27865 | -2/Protoforge | Destroyed Striker 27873 | -2/Protoforge | UFD reported confirmed Drillbomb installation 27927 | -2/Protoforge | Lost 5 allies 27938 | -2/Protoforge | Spotted Executioner 27938 | -2/Protoforge | Spotted Striker 27941 | -2/Protoforge | Spotted Executioner 27941 | -2/Protoforge | Spotted Striker 27943 | -2/Protoforge | Destroyed Striker 27975 | -2/Protoforge | Lost 4 allies 27980 | -2/Protoforge | Spotted Executioner 27984 | -2/Protoforge | Destroyed Executioner 28002 | -2/Protoforge | Spotted Striker 28013 | -2/Protoforge | Destroyed Striker 28017 | -2/Protoforge | Spotted Striker 28019 | -2/Protoforge | Spotted Striker 28019 | -2/Protoforge | Destroyed Striker 28024 | -2/Protoforge | Destroyed Striker 28029 | -2/Protoforge | Destroyed Striker 28031 | -2/Protoforge | Spotted Striker 28032 | -2/Protoforge | Destroyed Striker 28033 | -2/Protoforge | Spotted Executioner 28059 | -2/Protoforge | Lost 10 allies 28105 | -2/Protoforge | Destroyed 22 combat bots 28124 | -2/Protoforge | Spotted Striker 28129 | -2/Protoforge | Destroyed Striker 28189 | -2/Protoforge | Spotted Striker 28190 | -2/Protoforge | Spotted Striker 28196 | -2/Protoforge | Destroyed Striker 28206 | -2/Protoforge | UFD reported confirmed Drillbomb installation 28207 | -2/Protoforge | Spotted Striker 28207 | -2/Protoforge | Spotted Striker 28208 | -2/Protoforge | Spotted Striker 28211 | -2/Protoforge | Spotted Executioner 28233 | -2/Protoforge | Found Exp. Weapon Cycler 28236 | -2/Protoforge | P-80 Master assimilated allied 02FAI-D 28237 | -2/Protoforge | Destroyed Striker 28272 | -2/Protoforge | Found 0bPrime Scrap Suit 28283 | -2/Protoforge | Spotted Executioner 28286 | -2/Protoforge | Destroyed Executioner 28289 | -2/Protoforge | Lost 9 allies 28301 | -2/Protoforge | Attached CPS modules to Optimus. 28307 | -2/Protoforge | Found Exp. Targeting Computer 28322 | -2/Protoforge | UFD reported confirmed Drillbomb installation 28330 | -2/Protoforge | Spotted Executioner 28331 | -2/Protoforge | Destroyed Executioner 28333 | -2/Protoforge | Spotted Executioner 28337 | -2/Protoforge | Spotted Executioner 28339 | -2/Protoforge | Spotted Striker 28339 | -2/Protoforge | Destroyed Executioner 28376 | -2/Protoforge | Spotted Striker 28379 | -2/Protoforge | Spotted Striker 28387 | -2/Protoforge | Destroyed Striker 28388 | -2/Protoforge | Destroyed Striker 28389 | -2/Protoforge | UFD reported confirmed Drillbomb installation 28404 | -2/Protoforge | Lost 7 allies 28429 | -2/Protoforge | Spotted Executioner 28439 | -2/Protoforge | Spotted Executioner 28451 | -2/Protoforge | Destroyed 17 combat bots 28458 | -2/Protoforge | Build established: Scavenger-Sprinter 28461 | -2/Protoforge | Spotted Executioner 28465 | -2/Protoforge | Lost 4 allies 28465 | -2/Protoforge | Spotted Striker 28471 | -2/Protoforge | Destroyed Executioner 28492 | -2/Protoforge | Attached CPS modules to 02F18-K. 28494 | -2/Protoforge | Attached CPS modules to 02F19-K. 28509 | -2/Protoforge | Spotted Striker 28511 | -2/Protoforge | Spotted Executioner 28529 | -2/Protoforge | UFD reported confirmed Drillbomb installation 28546 | -2/Protoforge | Destroyed 02F18-K 28563 | -2/Protoforge | Spotted Executioner 28564 | -2/Protoforge | Spotted Executioner 28565 | -2/Protoforge | Spotted Executioner 28566 | -2/Protoforge | Spotted Striker 28577 | -2/Protoforge | Destroyed Striker 28585 | -2/Protoforge | Found Cep. Chromion Battery 28597 | -2/Protoforge | Destroyed Striker 28599 | -2/Protoforge | Spotted Striker 28599 | -2/Protoforge | Spotted Striker 28600 | -2/Protoforge | Destroyed Striker 28601 | -2/Protoforge | Destroyed Striker 28616 | -2/Protoforge | Destroyed Executioner 28622 | -2/Protoforge | Destroyed Executioner 28662 | -2/Protoforge | Destroyed 15 combat bots 28665 | -2/Protoforge | Spotted Striker 28666 | -2/Protoforge | Spotted Striker 28666 | -2/Protoforge | Spotted Striker 28674 | -2/Protoforge | Spotted Striker 28687 | -2/Protoforge | Destroyed Striker 28689 | -2/Protoforge | Destroyed Striker 28703 | -2/Protoforge | Spotted Executioner 28703 | -2/Protoforge | Destroyed Executioner 28707 | -2/Protoforge | Destroyed Executioner 28743 | -2/Protoforge | Destroyed 14 combat bots 28743 | -2/Protoforge | Lost 16 allies 28743 | -2/Protoforge | Discovered new exit (range 22) 28763 | -2/Protoforge | Spotted Striker 28764 | -2/Protoforge | Spotted Striker 28764 | -2/Protoforge | Spotted Striker 28765 | -2/Protoforge | Spotted Striker 28779 | -2/Protoforge | Destroyed Striker 28806 | -2/Protoforge | Destroyed Striker 28823 | -2/Protoforge | UFD reported confirmed Drillbomb installation 28827 | -2/Protoforge | Destroyed Striker 28862 | -2/Protoforge | Spotted Striker 28864 | -2/Protoforge | Spotted Striker 28864 | -2/Protoforge | Spotted Striker 28866 | -2/Protoforge | Destroyed 7 combat bots 28870 | -2/Protoforge | Found Exp. Core Analyzer 28875 | -2/Protoforge | Spotted Striker 28880 | -2/Protoforge | Destroyed Striker 28889 | -2/Protoforge | Destroyed Striker 28919 | -2/Protoforge | Spotted Executioner 28919 | -2/Protoforge | Destroyed Executioner 28923 | -2/Protoforge | Lost 7 allies 28945 | -2/Protoforge | Destroyed 9 combat bots 28964 | -2/Protoforge | Spotted Striker 28965 | -2/Protoforge | Spotted Executioner 28970 | -2/Protoforge | Spotted Executioner 28980 | -2/Protoforge | Destroyed Striker 29004 | -2/Protoforge | Destroyed Executioner 29005 | -2/Protoforge | Destroyed Executioner 29008 | -2/Protoforge | Spotted Executioner 29015 | -2/Protoforge | Destroyed Executioner 29019 | -2/Protoforge | Spotted Striker 29039 | -2/Protoforge | Destroyed 12 combat bots 29063 | -2/Protoforge | Spotted Striker 29063 | -2/Protoforge | Spotted Executioner 29065 | -2/Protoforge | Spotted Striker 29067 | -2/Protoforge | Destroyed Executioner 29068 | -2/Protoforge | Spotted Executioner 29069 | -2/Protoforge | Destroyed Striker 29071 | -2/Protoforge | Destroyed Striker 29086 | -2/Protoforge | Spotted Striker 29087 | -2/Protoforge | Spotted Executioner 29088 | -2/Protoforge | Destroyed Striker 29089 | -2/Protoforge | Destroyed Executioner 29115 | -2/Protoforge | Destroyed 18 combat bots 29118 | -2/Protoforge | Lost 15 allies 29161 | -2/Protoforge | Spotted Executioner 29161 | -2/Protoforge | Spotted Executioner 29161 | -2/Protoforge | Spotted Executioner 29161 | -2/Protoforge | Spotted Striker 29162 | -2/Protoforge | UFD reported confirmed Drillbomb installation 29164 | -2/Protoforge | P-80 Master assimilated allied Lugger 719 29167 | -2/Protoforge | P-80 Master assimilated allied 02FAY-D 29200 | -2/Protoforge | Destroyed Executioner 29201 | -2/Protoforge | Destroyed Executioner 29202 | -2/Protoforge | Spotted Striker 29205 | -2/Protoforge | Destroyed Striker 29214 | -2/Protoforge | Destroyed Executioner 29215 | -2/Protoforge | Spotted Executioner 29217 | -2/Protoforge | Destroyed Executioner 29240 | -2/Protoforge | Destroyed 12 combat bots 29242 | -2/Protoforge | Lost 4 allies 29261 | -2/Protoforge | Spotted Striker 29263 | -2/Protoforge | P-80 Master assimilated allied 02F23-K 29263 | -2/Protoforge | Spotted 02F23-K 29265 | -2/Protoforge | Destroyed 02F23-K 29265 | -2/Protoforge | UFD reported confirmed Drillbomb installation 29266 | -2/Protoforge | UFD began Drillbomb countdown 29282 | -2/Protoforge | Spotted Decapitator 29282 | -2/Protoforge | Spotted Decapitator 29282 | -2/Protoforge | Spotted V743-n 29282 | -2/Protoforge | Spotted V545-j 29295 | -2/Protoforge | Found Cep. Recoil Nullifier 29304 | -2/Protoforge | Spotted Decapitator 29304 | -2/Protoforge | Spotted Decapitator 29304 | -2/Protoforge | Spotted Decapitator 29308 | -2/Protoforge | Destroyed Decapitator 29324 | -2/Protoforge | Found Cep. Zero-point Core 29338 | -2/Protoforge | Spotted AP7-3 29344 | -2/Protoforge | Scanned by Researcher 29356 | -2/Protoforge | Spotted AP7-3 29363 | -2/Protoforge | Found Faulty Cep. Blasthammer 29364 | -2/Protoforge | Found Cep. Core Analysis Suite 29366 | *** | Defending 0bPrime! Last Messages --------------- control over 0b1 for ourselves! 29358_ Closed Research Cell breached. 29358_ Held in stasis. 29358_ C-65 Expert is analyzing... 29359_ 0bP_NET: What better way to punctuate our success than a blaze of glory, directed away from ourselves, of course. 29360_ 0bP_NET: Time for our final countdown to an explosive victory... 29361_ 0bP_NET: 5! 29361_ Penetrated by Slug. 29361_ Slug penetrates Closed Research Cell. 29361_ Exp. Reaction Control System destroyed. 29362_ 0bP_NET: 4! 29363_ 0bP_NET: 3! 29363_ Acquired Faulty Cep. Blasthammer. 29363_ Faulty integration triggers heat surge (+399). 29364_ 0bP_NET: If you're in the wrong place at the wrong time, the wrong time being in just a moment, I'm sorry but prepare to die. 29364_ Acquired Cep. Core Analysis Suite. 29365_ 0bP_NET: Otherwise, enjoy the show! [Achievement: Robotopia] Map ----- +----------------------------------------------------+ | | | | | | | | | | | | | | | | | | | | | | | | | | | | | | | ?????????????????????????????????????????????????? | | ?????????????????????????????????????????????????? | | ?????????????????????????????????????????????????? | | ?????????????????????????????????????????????????? | | ?????????????????????????????????????????????????? | | ?????????????????????????????????????????????????? | | ??????????????????????########???????????????????? | | ??????????????????????#""""""#???????????????????? | | ???????################"!!! "#???????????????????? | | ???????#"""""" # " ! !"#???????????????????? | | ???????#" " " 7c @ !"#???????????????????? | | #########! 7### !"#???????????????????? | | ##"""""#???????????????????? | | *$! ########???????????????????? | | #??????????????????????????? | | ######### ##??????????????????????????? | | ???????#" " " " " " "#?????????????????????????? | | ???????#""""""""#""""""#?????????????????????????? | | ???????#################?????????????????????????? | | ?????????????????????????????????????????????????? | | ?????????????????????????????????????????????????? | | ?????????????????????????????????????????????????? | | ?????????????????????????????????????????????????? | | ?????????????????????????????????????????????????? | | ?????????????????????????????????????????????????? | | ?????????????????????????????????????????????????? | | ?????????????????????????????????????????????????? | | ?????????????????????????????????????????????????? | | ?????????????????????????????????????????????????? | | ###??????????????????????????????????????????????? | | ##?????????????????????????????????????????????? | | #?????????????????????????????????????????????? | | #??????????????!!!?!??????????????????????????? | | ##??????????????!!!?!!!????????????????????????? | | #???????????????!?!????????????????????????????? | +----------------------------------------------------+ Best States ------------- Heat Dissipation 89 Coolant Potential 50 Energy Generation 48 Energy Capacity 1070 Matter Stores 300 Matter Capacity 300 Sight Range 24 Robot Scan Range 20 Terrain Scan Density 10 Additional Mass Support 16 Corruption Containment 8 Armor Coverage 800 Resistance: EM 25 Propulsion Shielding 90 Weapon Cycling 30 Evasion (%) 82 Targeting Accuracy 42 Core Analysis 12 Recoil Reduction 2 Kinecelleration 66 Offensive Hacking 28 Defensive Hacking 10 Authchip Count 2 Item Schematics ----------------- Hyp. Gauss Cannon | -7/Recycling | Hacked Tri-rail Accelerator | -5/Factory | Scanalyzed Weapon Mount | -4/Factory | Hacked Assault Drone Bay | -4/Zhirov | Free Exp. Heat Sink | -4/Zhirov | Free Exp. Optical Array | -4/Zhirov | Free Imp. Arc Thrower | -4/Zhirov | Free Zero-point Reactor | -3/Research | Hacked Cld. Q-thruster | -3/Research | Hacked Gravity Flail | -2/Protoforge | Archive Robot Schematics ------------------ None Fabricated ------------ Tri-rail Accelerator | x1 | -5/Factory | Authchip Weapon Mount | x2 | -4/Factory | Authchip Cld. Q-thruster | x1 | -3/Armory | Authchip Zero-point Reactor | x1 | -3/Armory | Authchip Cld. Q-thruster | x1 | -2/Protoforge | Authchip Cld. Q-thruster | x1 | -2/Protoforge | Authchip Repaired ---------- Tri-rail Accelerator | 12% | -5/Factory | Broken Lgt. Fission Core | 16% | -4/Factory Tri-rail Accelerator | 27% | -2/Quarantine | Broken Studied --------- Hvy. Assault Cannon | -5/Factory | Hacked Xenon Bombardment Thruster | -5/Factory | Hacked Cesium-ion Thruster | -5/Factory | Hacked Hvy. Missile Launcher | -5/Factory | Hacked Mic. Fission Core | -4/Factory | Hacked Mic. Antimatter Reactor | -4/Factory | Hacked Lgt. Fission Core | -4/Factory | Hacked Field Propulsion Array | -3/Research | Hacked Alien Tech Used ----------------- Integrated Dissipator Transdimensional Reconstructor Core Expander Phase Redirector Terrabomb Achievements -------------- Inventory(Loot) Recruitment Drive Red Leader Robotopia Some Acronyms Are Better Than Others Suspicious Suspicious By Nature UFD MVP Unwanted Attention Challenges ------------ None Game ------ Seed DirtyArcsightScrapsphere Manual? 0 Play Time 20:14:11 Cumulative 610.5 hours Start 2025.11.12 @ 20:30:48 End 2025.11.23 @ 20:06:41 Sessions 20 Manual Loads 0 Difficulty Rogue Special Mode None Game No. 63 Rogue 60 Adventurer 3 Explorer 0 Win Type 9 Total 21 Types 9/1/4/2/1/0/1/1/1/1 Lore% 83 Gallery% 86 Achievement% 74 Wizard Run 0 Options --------- Layout 0 ASCII 0 Keyboard 0 Movement Numpad Keybinds 0 Fullscreen 1 Font 18/SmallcapsGlow Map View 76x50 Zoom Use 0% Tactical HUD 1 Map Filters NONE Filters NONE Steam 1 RUN: 3fe49b28-d295-4479-b572-5a4dbb0b77c1